Workbook

Sheet Home
B4: Lista de preţuri a NOARK Electric S.R.L.
B6: Romania
B8: Valabilă începând cu | E8: 2021-07-01

Sheet Lista de preturi
A2: Lista de preţuri a NOARK Electric S.R.L. | D2: Valabilă din: | E2: =Val -> 2021-07-01
A3: Romania
A4: Nr. articol | B4: Tip | C4: Descriere | D4: Grup de reduceri | E4: Preţ brut (RON) | F4: Reducere | G4: Preţ cu reducere (RON) | H4: Codul EAN al produsului | I4: Pachet de bază (buc) | J4: Codul EAN/GTIN al pachetului de bază | K4: Pachet de carton (buc) | L4: Codul EAN/GTIN al pachetului de carton | M4: Tarife vamale | N4: Greutate specifică (kg)
A6: Mini-întreruptoare Ex9BH, 10 kA
A7: 100270 | B7: Ex9BH 1P B1 | C7: Mini-întreruptor 10 kA, caracteristica B, 1 A, 1-pol | D7: NAA | E7: 29.28 | F7: =NAA -> 0 | G7: =E7*(1-F7) -> 29.28 | H7: 8592765002716 | I7: 12 | J7: 18592765002713 | K7: 144 | L7: 28592765002710 | M7: 8536201090 | N7: 0.12
A8: 100271 | B8: Ex9BH 1P B2 | C8: Mini-întreruptor 10 kA, caracteristica B, 2 A, 1-pol | D8: NAA | E8: 26.08 | F8: 0 | G8: 26.08 | H8: 8592765002723 | I8: 12 | J8: 18592765002720 | K8: 144 | L8: 28592765002727 | M8: 8536201090 | N8: 0.12
A9: 100272 | B9: Ex9BH 1P B3 | C9: Mini-întreruptor 10 kA, caracteristica B, 3 A, 1-pol | D9: NAA | E9: 26.08 | F9: 0 | G9: 26.08 | H9: 8592765002730 | I9: 12 | J9: 18592765002737 | K9: 144 | L9: 28592765002734 | M9: 8536201090 | N9: 0.12
A10: 100273 | B10: Ex9BH 1P B4 | C10: Mini-întreruptor 10 kA, caracteristica B, 4 A, 1-pol | D10: NAA | E10: 21.51 | F10: 0 | G10: 21.51 | H10: 8592765002747 | I10: 12 | J10: 18592765002744 | K10: 144 | L10: 28592765002741 | M10: 8536201090 | N10: 0.12
A11: 100274 | B11: Ex9BH 1P B6 | C11: Mini-întreruptor 10 kA, caracteristica B, 6 A, 1-pol | D11: NAA | E11: 19.98 | F11: 0 | G11: 19.98 | H11: 8592765002754 | I11: 12 | J11: 18592765002751 | K11: 144 | L11: 28592765002758 | M11: 8536201090 | N11: 0.12
A12: 100275 | B12: Ex9BH 1P B8 | C12: Mini-întreruptor 10 kA, caracteristica B, 8 A, 1-pol | D12: NAA | E12: 16.96 | F12: 0 | G12: 16.96 | H12: 8592765002761 | I12: 12 | J12: 18592765002768 | K12: 144 | L12: 28592765002765 | M12: 8536201090 | N12: 0.12
A13: 100276 | B13: Ex9BH 1P B10 | C13: Mini-întreruptor 10 kA, caracteristica B, 10 A, 1-pol | D13: NAA | E13: 14.69 | F13: 0 | G13: 14.69 | H13: 8592765002778 | I13: 12 | J13: 18592765002775 | K13: 144 | L13: 28592765002772 | M13: 8536201090 | N13: 0.12
A14: 100277 | B14: Ex9BH 1P B13 | C14: Mini-întreruptor 10 kA, caracteristica B, 13 A, 1-pol | D14: NAA | E14: 15.53 | F14: 0 | G14: 15.53 | H14: 8592765002785 | I14: 12 | J14: 18592765002782 | K14: 144 | L14: 28592765002789 | M14: 8536201090 | N14: 0.12
A15: 100278 | B15: Ex9BH 1P B16 | C15: Mini-întreruptor 10 kA, caracteristica B, 16 A, 1-pol | D15: NAA | E15: 14.69 | F15: 0 | G15: 14.69 | H15: 8592765002792 | I15: 12 | J15: 18592765002799 | K15: 144 | L15: 28592765002796 | M15: 8536201090 | N15: 0.12
A16: 100279 | B16: Ex9BH 1P B20 | C16: Mini-întreruptor 10 kA, caracteristica B, 20 A, 1-pol | D16: NAA | E16: 17.1 | F16: 0 | G16: 17.1 | H16: 8592765002808 | I16: 12 | J16: 18592765002805 | K16: 144 | L16: 28592765002802 | M16: 8536201090 | N16: 0.12
A17: 100280 | B17: Ex9BH 1P B25 | C17: Mini-întreruptor 10 kA, caracteristica B, 25 A, 1-pol | D17: NAA | E17: 17.1 | F17: 0 | G17: 17.1 | H17: 8592765002815 | I17: 12 | J17: 18592765002812 | K17: 144 | L17: 28592765002819 | M17: 8536201090 | N17: 0.12
A18: 100281 | B18: Ex9BH 1P B32 | C18: Mini-întreruptor 10 kA, caracteristica B, 32 A, 1-pol | D18: NAA | E18: 17.1 | F18: 0 | G18: 17.1 | H18: 8592765002822 | I18: 12 | J18: 18592765002829 | K18: 144 | L18: 28592765002826 | M18: 8536201090 | N18: 0.12
A19: 100282 | B19: Ex9BH 1P B40 | C19: Mini-întreruptor 10 kA, caracteristica B, 40 A, 1-pol | D19: NAA | E19: 17.46 | F19: 0 | G19: 17.46 | H19: 8592765002839 | I19: 12 | J19: 18592765002836 | K19: 144 | L19: 28592765002833 | M19: 8536201090 | N19: 0.12
A20: 100283 | B20: Ex9BH 1P B50 | C20: Mini-întreruptor 10 kA, caracteristica B, 50 A, 1-pol | D20: NAA | E20: 35.06 | F20: 0 | G20: 35.06 | H20: 8592765002846 | I20: 12 | J20: 18592765002843 | K20: 144 | L20: 28592765002840 | M20: 8536201090 | N20: 0.12
A21: 100284 | B21: Ex9BH 1P B63 | C21: Mini-întreruptor 10 kA, caracteristica B, 63 A, 1-pol | D21: NAA | E21: 37.07 | F21: 0 | G21: 37.07 | H21: 8592765002853 | I21: 12 | J21: 18592765002850 | K21: 144 | L21: 28592765002857 | M21: 8536201090 | N21: 0.12
A22: 100285 | B22: Ex9BH 1PN B1 | C22: Mini-întreruptor 10 kA, caracteristica B, 1 A, 1+Npoli | D22: NAA | E22: 32.96 | F22: 0 | G22: 32.96 | H22: 8592765002860 | I22: 6 | J22: 18592765002867 | K22: 72 | L22: 28592765002864 | M22: 8536201090 | N22: 0.24
A23: 100286 | B23: Ex9BH 1PN B2 | C23: Mini-întreruptor 10 kA, caracteristica B, 2 A, 1+Npoli | D23: NAA | E23: 32.96 | F23: 0 | G23: 32.96 | H23: 8592765002877 | I23: 6 | J23: 18592765002874 | K23: 72 | L23: 28592765002871 | M23: 8536201090 | N23: 0.24
A24: 100287 | B24: Ex9BH 1PN B3 | C24: Mini-întreruptor 10 kA, caracteristica B, 3 A, 1+Npoli | D24: NAA | E24: 33.63 | F24: 0 | G24: 33.63 | H24: 8592765002884 | I24: 6 | J24: 18592765002881 | K24: 72 | L24: 28592765002888 | M24: 8536201090 | N24: 0.24
A25: 100288 | B25: Ex9BH 1PN B4 | C25: Mini-întreruptor 10 kA, caracteristica B, 4 A, 1+Npoli | D25: NAA | E25: 31.7 | F25: 0 | G25: 31.7 | H25: 8592765002891 | I25: 6 | J25: 18592765002898 | K25: 72 | L25: 28592765002895 | M25: 8536201090 | N25: 0.24
A26: 100289 | B26: Ex9BH 1PN B6 | C26: Mini-întreruptor 10 kA, caracteristica B, 6 A, 1+Npoli | D26: NAA | E26: 30.35 | F26: 0 | G26: 30.35 | H26: 8592765002907 | I26: 6 | J26: 18592765002904 | K26: 72 | L26: 28592765002901 | M26: 8536201090 | N26: 0.24
A27: 100290 | B27: Ex9BH 1PN B8 | C27: Mini-întreruptor 10 kA, caracteristica B, 8 A, 1+Npoli | D27: NAA | E27: 30.35 | F27: 0 | G27: 30.35 | H27: 8592765002914 | I27: 6 | J27: 18592765002911 | K27: 72 | L27: 28592765002918 | M27: 8536201090 | N27: 0.24
A28: 100291 | B28: Ex9BH 1PN B10 | C28: Mini-întreruptor 10 kA, caracteristica B, 10 A, 1+Npoli | D28: NAA | E28: 23.66 | F28: 0 | G28: 23.66 | H28: 8592765002921 | I28: 6 | J28: 18592765002928 | K28: 72 | L28: 28592765002925 | M28: 8536201090 | N28: 0.24
A29: 100292 | B29: Ex9BH 1PN B13 | C29: Mini-întreruptor 10 kA, caracteristica B, 13 A, 1+Npoli | D29: NAA | E29: 24.01 | F29: 0 | G29: 24.01 | H29: 8592765002938 | I29: 6 | J29: 18592765002935 | K29: 72 | L29: 28592765002932 | M29: 8536201090 | N29: 0.24
A30: 100293 | B30: Ex9BH 1PN B16 | C30: Mini-întreruptor 10 kA, caracteristica B, 16 A, 1+Npoli | D30: NAA | E30: 25.11 | F30: 0 | G30: 25.11 | H30: 8592765002945 | I30: 6 | J30: 18592765002942 | K30: 72 | L30: 28592765002949 | M30: 8536201090 | N30: 0.24
A31: 100294 | B31: Ex9BH 1PN B20 | C31: Mini-întreruptor 10 kA, caracteristica B, 20 A, 1+Npoli | D31: NAA | E31: 26.01 | F31: 0 | G31: 26.01 | H31: 8592765002952 | I31: 6 | J31: 18592765002959 | K31: 72 | L31: 28592765002956 | M31: 8536201090 | N31: 0.24
A32: 100295 | B32: Ex9BH 1PN B25 | C32: Mini-întreruptor 10 kA, caracteristica B, 25 A, 1+Npoli | D32: NAA | E32: 26.01 | F32: 0 | G32: 26.01 | H32: 8592765002969 | I32: 6 | J32: 18592765002966 | K32: 72 | L32: 28592765002963 | M32: 8536201090 | N32: 0.24
A33: 100296 | B33: Ex9BH 1PN B32 | C33: Mini-întreruptor 10 kA, caracteristica B, 32 A, 1+Npoli | D33: NAA | E33: 33.44 | F33: 0 | G33: 33.44 | H33: 8592765002976 | I33: 6 | J33: 18592765002973 | K33: 72 | L33: 28592765002970 | M33: 8536201090 | N33: 0.24
A34: 100297 | B34: Ex9BH 1PN B40 | C34: Mini-întreruptor 10 kA, caracteristica B, 40 A, 1+Npoli | D34: NAA | E34: 33.44 | F34: 0 | G34: 33.44 | H34: 8592765002983 | I34: 6 | J34: 18592765002980 | K34: 72 | L34: 28592765002987 | M34: 8536201090 | N34: 0.24
A35: 100298 | B35: Ex9BH 1PN B50 | C35: Mini-întreruptor 10 kA, caracteristica B, 50 A, 1+Npoli | D35: NAA | E35: 51.5 | F35: 0 | G35: 51.5 | H35: 8592765002990 | I35: 6 | J35: 18592765002997 | K35: 72 | L35: 28592765002994 | M35: 8536201090 | N35: 0.24
A36: 100299 | B36: Ex9BH 1PN B63 | C36: Mini-întreruptor 10 kA, caracteristica B, 63 A, 1+Npoli | D36: NAA | E36: 51.5 | F36: 0 | G36: 51.5 | H36: 8592765003003 | I36: 6 | J36: 18592765003000 | K36: 72 | L36: 28592765003007 | M36: 8536201090 | N36: 0.24
A37: 100300 | B37: Ex9BH 2P B1 | C37: Mini-întreruptor 10 kA, caracteristica B, 1 A, 2-poli | D37: NAA | E37: 62.53 | F37: 0 | G37: 62.53 | H37: 8592765003010 | I37: 6 | J37: 18592765003017 | K37: 72 | L37: 28592765003014 | M37: 8536201090 | N37: 0.24
A38: 100301 | B38: Ex9BH 2P B2 | C38: Mini-întreruptor 10 kA, caracteristica B, 2 A, 2-poli | D38: NAA | E38: 59.35 | F38: 0 | G38: 59.35 | H38: 8592765003027 | I38: 6 | J38: 18592765003024 | K38: 72 | L38: 28592765003021 | M38: 8536201090 | N38: 0.24
A39: 100302 | B39: Ex9BH 2P B3 | C39: Mini-întreruptor 10 kA, caracteristica B, 3 A, 2-poli | D39: NAA | E39: 59.35 | F39: 0 | G39: 59.35 | H39: 8592765003034 | I39: 6 | J39: 18592765003031 | K39: 72 | L39: 28592765003038 | M39: 8536201090 | N39: 0.24
A40: 100303 | B40: Ex9BH 2P B4 | C40: Mini-întreruptor 10 kA, caracteristica B, 4 A, 2-poli | D40: NAA | E40: 45.62 | F40: 0 | G40: 45.62 | H40: 8592765003041 | I40: 6 | J40: 18592765003048 | K40: 72 | L40: 28592765003045 | M40: 8536201090 | N40: 0.24
A41: 100304 | B41: Ex9BH 2P B6 | C41: Mini-întreruptor 10 kA, caracteristica B, 6 A, 2-poli | D41: NAA | E41: 32.75 | F41: 0 | G41: 32.75 | H41: 8592765003058 | I41: 6 | J41: 18592765003055 | K41: 72 | L41: 28592765003052 | M41: 8536201090 | N41: 0.24
A42: 100305 | B42: Ex9BH 2P B8 | C42: Mini-întreruptor 10 kA, caracteristica B, 8 A, 2-poli | D42: NAA | E42: 35.68 | F42: 0 | G42: 35.68 | H42: 8592765003065 | I42: 6 | J42: 18592765003062 | K42: 72 | L42: 28592765003069 | M42: 8536201090 | N42: 0.24
A43: 100306 | B43: Ex9BH 2P B10 | C43: Mini-întreruptor 10 kA, caracteristica B, 10 A, 2-poli | D43: NAA | E43: 32.75 | F43: 0 | G43: 32.75 | H43: 8592765003072 | I43: 6 | J43: 18592765003079 | K43: 72 | L43: 28592765003076 | M43: 8536201090 | N43: 0.24
A44: 100307 | B44: Ex9BH 2P B13 | C44: Mini-întreruptor 10 kA, caracteristica B, 13 A, 2-poli | D44: NAA | E44: 33.91 | F44: 0 | G44: 33.91 | H44: 8592765003089 | I44: 6 | J44: 18592765003086 | K44: 72 | L44: 28592765003083 | M44: 8536201090 | N44: 0.24
A45: 100308 | B45: Ex9BH 2P B16 | C45: Mini-întreruptor 10 kA, caracteristica B, 16 A, 2-poli | D45: NAA | E45: 32.75 | F45: 0 | G45: 32.75 | H45: 8592765003096 | I45: 6 | J45: 18592765003093 | K45: 72 | L45: 28592765003090 | M45: 8536201090 | N45: 0.24
A46: 100309 | B46: Ex9BH 2P B20 | C46: Mini-întreruptor 10 kA, caracteristica B, 20 A, 2-poli | D46: NAA | E46: 37.8 | F46: 0 | G46: 37.8 | H46: 8592765003102 | I46: 6 | J46: 18592765003109 | K46: 72 | L46: 28592765003106 | M46: 8536201090 | N46: 0.24
A47: 100310 | B47: Ex9BH 2P B25 | C47: Mini-întreruptor 10 kA, caracteristica B, 25 A, 2-poli | D47: NAA | E47: 37.8 | F47: 0 | G47: 37.8 | H47: 8592765003119 | I47: 6 | J47: 18592765003116 | K47: 72 | L47: 28592765003113 | M47: 8536201090 | N47: 0.24
A48: 100311 | B48: Ex9BH 2P B32 | C48: Mini-întreruptor 10 kA, caracteristica B, 32 A, 2-poli | D48: NAA | E48: 37.8 | F48: 0 | G48: 37.8 | H48: 8592765003126 | I48: 6 | J48: 18592765003123 | K48: 72 | L48: 28592765003120 | M48: 8536201090 | N48: 0.24
A49: 100312 | B49: Ex9BH 2P B40 | C49: Mini-întreruptor 10 kA, caracteristica B, 40 A, 2-poli | D49: NAA | E49: 37.8 | F49: 0 | G49: 37.8 | H49: 8592765003133 | I49: 6 | J49: 18592765003130 | K49: 72 | L49: 28592765003137 | M49: 8536201090 | N49: 0.24
A50: 100313 | B50: Ex9BH 2P B50 | C50: Mini-întreruptor 10 kA, caracteristica B, 50 A, 2-poli | D50: NAA | E50: 77.8 | F50: 0 | G50: 77.8 | H50: 8592765003140 | I50: 6 | J50: 18592765003147 | K50: 72 | L50: 28592765003144 | M50: 8536201090 | N50: 0.24
A51: 100314 | B51: Ex9BH 2P B63 | C51: Mini-întreruptor 10 kA, caracteristica B, 63 A, 2-poli | D51: NAA | E51: 77.8 | F51: 0 | G51: 77.8 | H51: 8592765003157 | I51: 6 | J51: 18592765003154 | K51: 72 | L51: 28592765003151 | M51: 8536201090 | N51: 0.24
A52: 100315 | B52: Ex9BH 3P B1 | C52: Mini-întreruptor 10 kA, caracteristica B, 1 A, 3-poli | D52: NAA | E52: 81.8 | F52: 0 | G52: 81.8 | H52: 8592765003164 | I52: 4 | J52: 18592765003161 | K52: 48 | L52: 28592765003168 | M52: 8536201090 | N52: 0.36
A53: 100316 | B53: Ex9BH 3P B2 | C53: Mini-întreruptor 10 kA, caracteristica B, 2 A, 3-poli | D53: NAA | E53: 90.07 | F53: 0 | G53: 90.07 | H53: 8592765003171 | I53: 4 | J53: 18592765003178 | K53: 48 | L53: 28592765003175 | M53: 8536201090 | N53: 0.36
A54: 100317 | B54: Ex9BH 3P B3 | C54: Mini-întreruptor 10 kA, caracteristica B, 3 A, 3-poli | D54: NAA | E54: 90.07 | F54: 0 | G54: 90.07 | H54: 8592765003188 | I54: 4 | J54: 18592765003185 | K54: 48 | L54: 28592765003182 | M54: 8536201090 | N54: 0.36
A55: 100318 | B55: Ex9BH 3P B4 | C55: Mini-întreruptor 10 kA, caracteristica B, 4 A, 3-poli | D55: NAA | E55: 70.38 | F55: 0 | G55: 70.38 | H55: 8592765003195 | I55: 4 | J55: 18592765003192 | K55: 48 | L55: 28592765003199 | M55: 8536201090 | N55: 0.36
A56: 100319 | B56: Ex9BH 3P B6 | C56: Mini-întreruptor 10 kA, caracteristica B, 6 A, 3-poli | D56: NAA | E56: 58.87 | F56: 0 | G56: 58.87 | H56: 8592765003201 | I56: 4 | J56: 18592765003208 | K56: 48 | L56: 28592765003205 | M56: 8536201090 | N56: 0.36
A57: 100320 | B57: Ex9BH 3P B8 | C57: Mini-întreruptor 10 kA, caracteristica B, 8 A, 3-poli | D57: NAA | E57: 52.12 | F57: 0 | G57: 52.12 | H57: 8592765003218 | I57: 4 | J57: 18592765003215 | K57: 48 | L57: 28592765003212 | M57: 8536201090 | N57: 0.36
A58: 100321 | B58: Ex9BH 3P B10 | C58: Mini-întreruptor 10 kA, caracteristica B, 10 A, 3-poli | D58: NAA | E58: 47.07 | F58: 0 | G58: 47.07 | H58: 8592765003225 | I58: 4 | J58: 18592765003222 | K58: 48 | L58: 28592765003229 | M58: 8536201090 | N58: 0.36
A59: 100322 | B59: Ex9BH 3P B13 | C59: Mini-întreruptor 10 kA, caracteristica B, 13 A, 3-poli | D59: NAA | E59: 48.75 | F59: 0 | G59: 48.75 | H59: 8592765003232 | I59: 4 | J59: 18592765003239 | K59: 48 | L59: 28592765003236 | M59: 8536201090 | N59: 0.36
A60: 100323 | B60: Ex9BH 3P B16 | C60: Mini-întreruptor 10 kA, caracteristica B, 16 A, 3-poli | D60: NAA | E60: 47.07 | F60: 0 | G60: 47.07 | H60: 8592765003249 | I60: 4 | J60: 18592765003246 | K60: 48 | L60: 28592765003243 | M60: 8536201090 | N60: 0.36
A61: 100324 | B61: Ex9BH 3P B20 | C61: Mini-întreruptor 10 kA, caracteristica B, 20 A, 3-poli | D61: NAA | E61: 55.13 | F61: 0 | G61: 55.13 | H61: 8592765003256 | I61: 4 | J61: 18592765003253 | K61: 48 | L61: 28592765003250 | M61: 8536201090 | N61: 0.36
A62: 100325 | B62: Ex9BH 3P B25 | C62: Mini-întreruptor 10 kA, caracteristica B, 25 A, 3-poli | D62: NAA | E62: 55.13 | F62: 0 | G62: 55.13 | H62: 8592765003263 | I62: 4 | J62: 18592765003260 | K62: 48 | L62: 28592765003267 | M62: 8536201090 | N62: 0.36
A63: 100326 | B63: Ex9BH 3P B32 | C63: Mini-întreruptor 10 kA, caracteristica B, 32 A, 3-poli | D63: NAA | E63: 55.13 | F63: 0 | G63: 55.13 | H63: 8592765003270 | I63: 4 | J63: 18592765003277 | K63: 48 | L63: 28592765003274 | M63: 8536201090 | N63: 0.36
A64: 100327 | B64: Ex9BH 3P B40 | C64: Mini-întreruptor 10 kA, caracteristica B, 40 A, 3-poli | D64: NAA | E64: 55.13 | F64: 0 | G64: 55.13 | H64: 8592765003287 | I64: 4 | J64: 18592765003284 | K64: 48 | L64: 28592765003281 | M64: 8536201090 | N64: 0.36
A65: 100328 | B65: Ex9BH 3P B50 | C65: Mini-întreruptor 10 kA, caracteristica B, 50 A, 3-poli | D65: NAA | E65: 112.17 | F65: 0 | G65: 112.17 | H65: 8592765003294 | I65: 4 | J65: 18592765003291 | K65: 48 | L65: 28592765003298 | M65: 8536201090 | N65: 0.36
A66: 100329 | B66: Ex9BH 3P B63 | C66: Mini-întreruptor 10 kA, caracteristica B, 63 A, 3-poli | D66: NAA | E66: 112.17 | F66: 0 | G66: 112.17 | H66: 8592765003300 | I66: 4 | J66: 18592765003307 | K66: 48 | L66: 28592765003304 | M66: 8536201090 | N66: 0.36
A67: 100330 | B67: Ex9BH 3PN B1 | C67: Mini-întreruptor 10 kA, caracteristica B, 1 A, 3+Npoli | D67: NAA | E67: 128.79 | F67: 0 | G67: 128.79 | H67: 8592765003317 | I67: 3 | J67: 18592765003314 | K67: 36 | L67: 28592765003311 | M67: 8536201090 | N67: 0.48
A68: 100331 | B68: Ex9BH 3PN B2 | C68: Mini-întreruptor 10 kA, caracteristica B, 2 A, 3+Npoli | D68: NAA | E68: 131.69 | F68: 0 | G68: 131.69 | H68: 8592765003324 | I68: 3 | J68: 18592765003321 | K68: 36 | L68: 28592765003328 | M68: 8536201090 | N68: 0.48
A69: 100332 | B69: Ex9BH 3PN B3 | C69: Mini-întreruptor 10 kA, caracteristica B, 3 A, 3+Npoli | D69: NAA | E69: 131.69 | F69: 0 | G69: 131.69 | H69: 8592765003331 | I69: 3 | J69: 18592765003338 | K69: 36 | L69: 28592765003335 | M69: 8536201090 | N69: 0.48
A70: 100333 | B70: Ex9BH 3PN B4 | C70: Mini-întreruptor 10 kA, caracteristica B, 4 A, 3+Npoli | D70: NAA | E70: 111.97 | F70: 0 | G70: 111.97 | H70: 8592765003348 | I70: 3 | J70: 18592765003345 | K70: 36 | L70: 28592765003342 | M70: 8536201090 | N70: 0.48
A71: 100334 | B71: Ex9BH 3PN B6 | C71: Mini-întreruptor 10 kA, caracteristica B, 6 A, 3+Npoli | D71: NAA | E71: 66.7 | F71: =NAA -> 0 | G71: =E71*(1-F71) -> 66.7 | H71: 8592765003355 | I71: 3 | J71: 18592765003352 | K71: 36 | L71: 28592765003359 | M71: 8536201090 | N71: 0.48
A72: 100335 | B72: Ex9BH 3PN B8 | C72: Mini-întreruptor 10 kA, caracteristica B, 8 A, 3+Npoli | D72: NAA | E72: 70.52 | F72: 0 | G72: 70.52 | H72: 8592765003362 | I72: 3 | J72: 18592765003369 | K72: 36 | L72: 28592765003366 | M72: 8536201090 | N72: 0.48
A73: 100336 | B73: Ex9BH 3PN B10 | C73: Mini-întreruptor 10 kA, caracteristica B, 10 A, 3+Npoli | D73: NAA | E73: 62.79 | F73: 0 | G73: 62.79 | H73: 8592765003379 | I73: 3 | J73: 18592765003376 | K73: 36 | L73: 28592765003373 | M73: 8536201090 | N73: 0.48
A74: 100337 | B74: Ex9BH 3PN B13 | C74: Mini-întreruptor 10 kA, caracteristica B, 13 A, 3+Npoli | D74: NAA | E74: 66.4 | F74: 0 | G74: 66.4 | H74: 8592765003386 | I74: 3 | J74: 18592765003383 | K74: 36 | L74: 28592765003380 | M74: 8536201090 | N74: 0.48
A75: 100338 | B75: Ex9BH 3PN B16 | C75: Mini-întreruptor 10 kA, caracteristica B, 16 A, 3+Npoli | D75: NAA | E75: 62.79 | F75: 0 | G75: 62.79 | H75: 8592765003393 | I75: 3 | J75: 18592765003390 | K75: 36 | L75: 28592765003397 | M75: 8536201090 | N75: 0.48
A76: 100339 | B76: Ex9BH 3PN B20 | C76: Mini-întreruptor 10 kA, caracteristica B, 20 A, 3+Npoli | D76: NAA | E76: 70.8 | F76: 0 | G76: 70.8 | H76: 8592765003409 | I76: 3 | J76: 18592765003406 | K76: 36 | L76: 28592765003403 | M76: 8536201090 | N76: 0.48
A77: 100340 | B77: Ex9BH 3PN B25 | C77: Mini-întreruptor 10 kA, caracteristica B, 25 A, 3+Npoli | D77: NAA | E77: 71.52 | F77: 0 | G77: 71.52 | H77: 8592765003416 | I77: 3 | J77: 18592765003413 | K77: 36 | L77: 28592765003410 | M77: 8536201090 | N77: 0.48
A78: 100341 | B78: Ex9BH 3PN B32 | C78: Mini-întreruptor 10 kA, caracteristica B, 32 A, 3+Npoli | D78: NAA | E78: 74.73 | F78: 0 | G78: 74.73 | H78: 8592765003423 | I78: 3 | J78: 18592765003420 | K78: 36 | L78: 28592765003427 | M78: 8536201090 | N78: 0.48
A79: 100342 | B79: Ex9BH 3PN B40 | C79: Mini-întreruptor 10 kA, caracteristica B, 40 A, 3+Npoli | D79: NAA | E79: 77.04 | F79: 0 | G79: 77.04 | H79: 8592765003430 | I79: 3 | J79: 18592765003437 | K79: 36 | L79: 28592765003434 | M79: 8536201090 | N79: 0.48
A80: 100343 | B80: Ex9BH 3PN B50 | C80: Mini-întreruptor 10 kA, caracteristica B, 50 A, 3+Npoli | D80: NAA | E80: 137.58 | F80: 0 | G80: 137.58 | H80: 8592765003447 | I80: 3 | J80: 18592765003444 | K80: 36 | L80: 28592765003441 | M80: 8536201090 | N80: 0.48
A81: 100344 | B81: Ex9BH 3PN B63 | C81: Mini-întreruptor 10 kA, caracteristica B, 63 A, 3+Npoli | D81: NAA | E81: 137.58 | F81: 0 | G81: 137.58 | H81: 8592765003454 | I81: 3 | J81: 18592765003451 | K81: 36 | L81: 28592765003458 | M81: 8536201090 | N81: 0.48
A82: 100345 | B82: Ex9BH 4P B1 | C82: Mini-întreruptor 10 kA, caracteristica B, 1 A, 4-poli | D82: NAA | E82: 152.6 | F82: 0 | G82: 152.6 | H82: 8592765003461 | I82: 3 | J82: 18592765003468 | K82: 36 | L82: 28592765003465 | M82: 8536201090 | N82: 0.48
A83: 100346 | B83: Ex9BH 4P B2 | C83: Mini-întreruptor 10 kA, caracteristica B, 2 A, 4-poli | D83: NAA | E83: 149.8 | F83: 0 | G83: 149.8 | H83: 8592765003478 | I83: 3 | J83: 18592765003475 | K83: 36 | L83: 28592765003472 | M83: 8536201090 | N83: 0.48
A84: 100347 | B84: Ex9BH 4P B3 | C84: Mini-întreruptor 10 kA, caracteristica B, 3 A, 4-poli | D84: NAA | E84: 149.8 | F84: 0 | G84: 149.8 | H84: 8592765003485 | I84: 3 | J84: 18592765003482 | K84: 36 | L84: 28592765003489 | M84: 8536201090 | N84: 0.48
A85: 100348 | B85: Ex9BH 4P B4 | C85: Mini-întreruptor 10 kA, caracteristica B, 4 A, 4-poli | D85: NAA | E85: 118.59 | F85: 0 | G85: 118.59 | H85: 8592765003492 | I85: 3 | J85: 18592765003499 | K85: 36 | L85: 28592765003496 | M85: 8536201090 | N85: 0.48
A86: 100349 | B86: Ex9BH 4P B6 | C86: Mini-întreruptor 10 kA, caracteristica B, 6 A, 4-poli | D86: NAA | E86: 74.96 | F86: 0 | G86: 74.96 | H86: 8592765003508 | I86: 3 | J86: 18592765003505 | K86: 36 | L86: 28592765003502 | M86: 8536201090 | N86: 0.48
A87: 100350 | B87: Ex9BH 4P B8 | C87: Mini-întreruptor 10 kA, caracteristica B, 8 A, 4-poli | D87: NAA | E87: 75.34 | F87: 0 | G87: 75.34 | H87: 8592765003515 | I87: 3 | J87: 18592765003512 | K87: 36 | L87: 28592765003519 | M87: 8536201090 | N87: 0.48
A88: 100351 | B88: Ex9BH 4P B10 | C88: Mini-întreruptor 10 kA, caracteristica B, 10 A, 4-poli | D88: NAA | E88: 64.54 | F88: 0 | G88: 64.54 | H88: 8592765003522 | I88: 3 | J88: 18592765003529 | K88: 36 | L88: 28592765003526 | M88: 8536201090 | N88: 0.48
A89: 100352 | B89: Ex9BH 4P B13 | C89: Mini-întreruptor 10 kA, caracteristica B, 13 A, 4-poli | D89: NAA | E89: 68.24 | F89: 0 | G89: 68.24 | H89: 8592765003539 | I89: 3 | J89: 18592765003536 | K89: 36 | L89: 28592765003533 | M89: 8536201090 | N89: 0.48
A90: 100353 | B90: Ex9BH 4P B16 | C90: Mini-întreruptor 10 kA, caracteristica B, 16 A, 4-poli | D90: NAA | E90: 64.54 | F90: 0 | G90: 64.54 | H90: 8592765003546 | I90: 3 | J90: 18592765003543 | K90: 36 | L90: 28592765003540 | M90: 8536201090 | N90: 0.48
A91: 100354 | B91: Ex9BH 4P B20 | C91: Mini-întreruptor 10 kA, caracteristica B, 20 A, 4-poli | D91: NAA | E91: 66.53 | F91: 0 | G91: 66.53 | H91: 8592765003553 | I91: 3 | J91: 18592765003550 | K91: 36 | L91: 28592765003557 | M91: 8536201090 | N91: 0.48
A92: 100355 | B92: Ex9BH 4P B25 | C92: Mini-întreruptor 10 kA, caracteristica B, 25 A, 4-poli | D92: NAA | E92: 71.94 | F92: 0 | G92: 71.94 | H92: 8592765003560 | I92: 3 | J92: 18592765003567 | K92: 36 | L92: 28592765003564 | M92: 8536201090 | N92: 0.48
A93: 100356 | B93: Ex9BH 4P B32 | C93: Mini-întreruptor 10 kA, caracteristica B, 32 A, 4-poli | D93: NAA | E93: 72.84 | F93: 0 | G93: 72.84 | H93: 8592765003577 | I93: 3 | J93: 18592765003574 | K93: 36 | L93: 28592765003571 | M93: 8536201090 | N93: 0.48
A94: 100357 | B94: Ex9BH 4P B40 | C94: Mini-întreruptor 10 kA, caracteristica B, 40 A, 4-poli | D94: NAA | E94: 75.76 | F94: 0 | G94: 75.76 | H94: 8592765003584 | I94: 3 | J94: 18592765003581 | K94: 36 | L94: 28592765003588 | M94: 8536201090 | N94: 0.48
A95: 100358 | B95: Ex9BH 4P B50 | C95: Mini-întreruptor 10 kA, caracteristica B, 50 A, 4-poli | D95: NAA | E95: 137.69 | F95: 0 | G95: 137.69 | H95: 8592765003591 | I95: 3 | J95: 18592765003598 | K95: 36 | L95: 28592765003595 | M95: 8536201090 | N95: 0.48
A96: 100359 | B96: Ex9BH 4P B63 | C96: Mini-întreruptor 10 kA, caracteristica B, 63 A, 4-poli | D96: NAA | E96: 137.69 | F96: 0 | G96: 137.69 | H96: 8592765003607 | I96: 3 | J96: 18592765003604 | K96: 36 | L96: 28592765003601 | M96: 8536201090 | N96: 0.48
A97: 100360 | B97: Ex9BH 1P C1 | C97: Mini-întreruptor 10 kA, caracteristica C, 1 A, 1-pol | D97: NAA | E97: 29.57 | F97: 0 | G97: 29.57 | H97: 8592765003614 | I97: 12 | J97: 18592765003611 | K97: 144 | L97: 28592765003618 | M97: 8536201090 | N97: 0.12
A98: 100361 | B98: Ex9BH 1P C2 | C98: Mini-întreruptor 10 kA, caracteristica C, 2 A, 1-pol | D98: NAA | E98: 27.43 | F98: 0 | G98: 27.43 | H98: 8592765003621 | I98: 12 | J98: 18592765003628 | K98: 144 | L98: 28592765003625 | M98: 8536201090 | N98: 0.12
A99: 100362 | B99: Ex9BH 1P C3 | C99: Mini-întreruptor 10 kA, caracteristica C, 3 A, 1-pol | D99: NAA | E99: 27.43 | F99: 0 | G99: 27.43 | H99: 8592765003638 | I99: 12 | J99: 18592765003635 | K99: 144 | L99: 28592765003632 | M99: 8536201090 | N99: 0.12
A100: 100363 | B100: Ex9BH 1P C4 | C100: Mini-întreruptor 10 kA, caracteristica C, 4 A, 1-pol | D100: NAA | E100: 21.95 | F100: 0 | G100: 21.95 | H100: 8592765003645 | I100: 12 | J100: 18592765003642 | K100: 144 | L100: 28592765003649 | M100: 8536201090 | N100: 0.12
A101: 100364 | B101: Ex9BH 1P C6 | C101: Mini-întreruptor 10 kA, caracteristica C, 6 A, 1-pol | D101: NAA | E101: 15.57 | F101: 0 | G101: 15.57 | H101: 8592765003652 | I101: 12 | J101: 18592765003659 | K101: 144 | L101: 28592765003656 | M101: 8536201090 | N101: 0.12
A102: 100365 | B102: Ex9BH 1P C8 | C102: Mini-întreruptor 10 kA, caracteristica C, 8 A, 1-pol | D102: NAA | E102: 16.96 | F102: 0 | G102: 16.96 | H102: 8592765003669 | I102: 12 | J102: 18592765003666 | K102: 144 | L102: 28592765003663 | M102: 8536201090 | N102: 0.12
A103: 100366 | B103: Ex9BH 1P C10 | C103: Mini-întreruptor 10 kA, caracteristica C, 10 A, 1-pol | D103: NAA | E103: 15.54 | F103: 0 | G103: 15.54 | H103: 8592765003676 | I103: 12 | J103: 18592765003673 | K103: 144 | L103: 28592765003670 | M103: 8536201090 | N103: 0.12
A104: 100367 | B104: Ex9BH 1P C13 | C104: Mini-întreruptor 10 kA, caracteristica C, 13 A, 1-pol | D104: NAA | E104: 16.42 | F104: 0 | G104: 16.42 | H104: 8592765003683 | I104: 12 | J104: 18592765003680 | K104: 144 | L104: 28592765003687 | M104: 8536201090 | N104: 0.12
A105: 100368 | B105: Ex9BH 1P C16 | C105: Mini-întreruptor 10 kA, caracteristica C, 16 A, 1-pol | D105: NAA | E105: 15.54 | F105: 0 | G105: 15.54 | H105: 8592765003690 | I105: 12 | J105: 18592765003697 | K105: 144 | L105: 28592765003694 | M105: 8536201090 | N105: 0.12
A106: 100369 | B106: Ex9BH 1P C20 | C106: Mini-întreruptor 10 kA, caracteristica C, 20 A, 1-pol | D106: NAA | E106: 17.75 | F106: 0 | G106: 17.75 | H106: 8592765003706 | I106: 12 | J106: 18592765003703 | K106: 144 | L106: 28592765003700 | M106: 8536201090 | N106: 0.12
A107: 100370 | B107: Ex9BH 1P C25 | C107: Mini-întreruptor 10 kA, caracteristica C, 25 A, 1-pol | D107: NAA | E107: 17.75 | F107: 0 | G107: 17.75 | H107: 8592765003713 | I107: 12 | J107: 18592765003710 | K107: 144 | L107: 28592765003717 | M107: 8536201090 | N107: 0.12
A108: 100371 | B108: Ex9BH 1P C32 | C108: Mini-întreruptor 10 kA, caracteristica C, 32 A, 1-pol | D108: NAA | E108: 17.75 | F108: 0 | G108: 17.75 | H108: 8592765003720 | I108: 12 | J108: 18592765003727 | K108: 144 | L108: 28592765003724 | M108: 8536201090 | N108: 0.12
A109: 100372 | B109: Ex9BH 1P C40 | C109: Mini-întreruptor 10 kA, caracteristica C, 40 A, 1-pol | D109: NAA | E109: 17.75 | F109: 0 | G109: 17.75 | H109: 8592765003737 | I109: 12 | J109: 18592765003734 | K109: 144 | L109: 28592765003731 | M109: 8536201090 | N109: 0.12
A110: 100373 | B110: Ex9BH 1P C50 | C110: Mini-întreruptor 10 kA, caracteristica C, 50 A, 1-pol | D110: NAA | E110: 37.03 | F110: 0 | G110: 37.03 | H110: 8592765003744 | I110: 12 | J110: 18592765003741 | K110: 144 | L110: 28592765003748 | M110: 8536201090 | N110: 0.12
A111: 100374 | B111: Ex9BH 1P C63 | C111: Mini-întreruptor 10 kA, caracteristica C, 63 A, 1-pol | D111: NAA | E111: 37.03 | F111: 0 | G111: 37.03 | H111: 8592765003751 | I111: 12 | J111: 18592765003758 | K111: 144 | L111: 28592765003755 | M111: 8536201090 | N111: 0.12
A112: 100375 | B112: Ex9BH 1PN C1 | C112: Mini-întreruptor 10 kA, caracteristica C, 1 A, 1+Npoli | D112: NAA | E112: 51.15 | F112: 0 | G112: 51.15 | H112: 8592765003768 | I112: 6 | J112: 18592765003765 | K112: 72 | L112: 28592765003762 | M112: 8536201090 | N112: 0.24
A113: 100376 | B113: Ex9BH 1PN C2 | C113: Mini-întreruptor 10 kA, caracteristica C, 2 A, 1+Npoli | D113: NAA | E113: 33.63 | F113: 0 | G113: 33.63 | H113: 8592765003775 | I113: 6 | J113: 18592765003772 | K113: 72 | L113: 28592765003779 | M113: 8536201090 | N113: 0.24
A114: 100377 | B114: Ex9BH 1PN C3 | C114: Mini-întreruptor 10 kA, caracteristica C, 3 A, 1+Npoli | D114: NAA | E114: 33.63 | F114: 0 | G114: 33.63 | H114: 8592765003782 | I114: 6 | J114: 18592765003789 | K114: 72 | L114: 28592765003786 | M114: 8536201090 | N114: 0.24
A115: 100378 | B115: Ex9BH 1PN C4 | C115: Mini-întreruptor 10 kA, caracteristica C, 4 A, 1+Npoli | D115: NAA | E115: 32.69 | F115: 0 | G115: 32.69 | H115: 8592765003799 | I115: 6 | J115: 18592765003796 | K115: 72 | L115: 28592765003793 | M115: 8536201090 | N115: 0.24
A116: 100379 | B116: Ex9BH 1PN C6 | C116: Mini-întreruptor 10 kA, caracteristica C, 6 A, 1+Npoli | D116: NAA | E116: 31.05 | F116: 0 | G116: 31.05 | H116: 8592765003805 | I116: 6 | J116: 18592765003802 | K116: 72 | L116: 28592765003809 | M116: 8536201090 | N116: 0.24
A117: 100380 | B117: Ex9BH 1PN C8 | C117: Mini-întreruptor 10 kA, caracteristica C, 8 A, 1+Npoli | D117: NAA | E117: 31.52 | F117: 0 | G117: 31.52 | H117: 8592765003812 | I117: 6 | J117: 18592765003819 | K117: 72 | L117: 28592765003816 | M117: 8536201090 | N117: 0.24
A118: 100381 | B118: Ex9BH 1PN C10 | C118: Mini-întreruptor 10 kA, caracteristica C, 10 A, 1+Npoli | D118: NAA | E118: 23.61 | F118: 0 | G118: 23.61 | H118: 8592765003829 | I118: 6 | J118: 18592765003826 | K118: 72 | L118: 28592765003823 | M118: 8536201090 | N118: 0.24
A119: 100382 | B119: Ex9BH 1PN C13 | C119: Mini-întreruptor 10 kA, caracteristica C, 13 A, 1+Npoli | D119: NAA | E119: 23.96 | F119: 0 | G119: 23.96 | H119: 8592765003836 | I119: 6 | J119: 18592765003833 | K119: 72 | L119: 28592765003830 | M119: 8536201090 | N119: 0.24
A120: 100383 | B120: Ex9BH 1PN C16 | C120: Mini-întreruptor 10 kA, caracteristica C, 16 A, 1+Npoli | D120: NAA | E120: 23.61 | F120: 0 | G120: 23.61 | H120: 8592765003843 | I120: 6 | J120: 18592765003840 | K120: 72 | L120: 28592765003847 | M120: 8536201090 | N120: 0.24
A121: 100384 | B121: Ex9BH 1PN C20 | C121: Mini-întreruptor 10 kA, caracteristica C, 20 A, 1+Npoli | D121: NAA | E121: 25.7 | F121: 0 | G121: 25.7 | H121: 8592765003850 | I121: 6 | J121: 18592765003857 | K121: 72 | L121: 28592765003854 | M121: 8536201090 | N121: 0.24
A122: 100385 | B122: Ex9BH 1PN C25 | C122: Mini-întreruptor 10 kA, caracteristica C, 25 A, 1+Npoli | D122: NAA | E122: 25.7 | F122: 0 | G122: 25.7 | H122: 8592765003867 | I122: 6 | J122: 18592765003864 | K122: 72 | L122: 28592765003861 | M122: 8536201090 | N122: 0.24
A123: 100386 | B123: Ex9BH 1PN C32 | C123: Mini-întreruptor 10 kA, caracteristica C, 32 A, 1+Npoli | D123: NAA | E123: 33.91 | F123: 0 | G123: 33.91 | H123: 8592765003874 | I123: 6 | J123: 18592765003871 | K123: 72 | L123: 28592765003878 | M123: 8536201090 | N123: 0.24
A124: 100387 | B124: Ex9BH 1PN C40 | C124: Mini-întreruptor 10 kA, caracteristica C, 40 A, 1+Npoli | D124: NAA | E124: 35.1 | F124: 0 | G124: 35.1 | H124: 8592765003881 | I124: 6 | J124: 18592765003888 | K124: 72 | L124: 28592765003885 | M124: 8536201090 | N124: 0.24
A125: 100388 | B125: Ex9BH 1PN C50 | C125: Mini-întreruptor 10 kA, caracteristica C, 50 A, 1+Npoli | D125: NAA | E125: 77.2 | F125: 0 | G125: 77.2 | H125: 8592765003898 | I125: 6 | J125: 18592765003895 | K125: 72 | L125: 28592765003892 | M125: 8536201090 | N125: 0.24
A126: 100389 | B126: Ex9BH 1PN C63 | C126: Mini-întreruptor 10 kA, caracteristica C, 63 A, 1+Npoli | D126: NAA | E126: 77.2 | F126: 0 | G126: 77.2 | H126: 8592765003904 | I126: 6 | J126: 18592765003901 | K126: 72 | L126: 28592765003908 | M126: 8536201090 | N126: 0.24
A127: 100390 | B127: Ex9BH 2P C1 | C127: Mini-întreruptor 10 kA, caracteristica C, 1 A, 2-poli | D127: NAA | E127: 63.81 | F127: 0 | G127: 63.81 | H127: 8592765003911 | I127: 6 | J127: 18592765003918 | K127: 72 | L127: 28592765003915 | M127: 8536201090 | N127: 0.24
A128: 100391 | B128: Ex9BH 2P C2 | C128: Mini-întreruptor 10 kA, caracteristica C, 2 A, 2-poli | D128: NAA | E128: 60.62 | F128: 0 | G128: 60.62 | H128: 8592765003928 | I128: 6 | J128: 18592765003925 | K128: 72 | L128: 28592765003922 | M128: 8536201090 | N128: 0.24
A129: 100392 | B129: Ex9BH 2P C3 | C129: Mini-întreruptor 10 kA, caracteristica C, 3 A, 2-poli | D129: NAA | E129: 60.62 | F129: 0 | G129: 60.62 | H129: 8592765003935 | I129: 6 | J129: 18592765003932 | K129: 72 | L129: 28592765003939 | M129: 8536201090 | N129: 0.24
A130: 100393 | B130: Ex9BH 2P C4 | C130: Mini-întreruptor 10 kA, caracteristica C, 4 A, 2-poli | D130: NAA | E130: 45.62 | F130: 0 | G130: 45.62 | H130: 8592765003942 | I130: 6 | J130: 18592765003949 | K130: 72 | L130: 28592765003946 | M130: 8536201090 | N130: 0.24
A131: 100394 | B131: Ex9BH 2P C6 | C131: Mini-întreruptor 10 kA, caracteristica C, 6 A, 2-poli | D131: NAA | E131: 32.07 | F131: 0 | G131: 32.07 | H131: 8592765003959 | I131: 6 | J131: 18592765003956 | K131: 72 | L131: 28592765003953 | M131: 8536201090 | N131: 0.24
A132: 100395 | B132: Ex9BH 2P C8 | C132: Mini-întreruptor 10 kA, caracteristica C, 8 A, 2-poli | D132: NAA | E132: 35.68 | F132: 0 | G132: 35.68 | H132: 8592765003966 | I132: 6 | J132: 18592765003963 | K132: 72 | L132: 28592765003960 | M132: 8536201090 | N132: 0.24
A133: 100396 | B133: Ex9BH 2P C10 | C133: Mini-întreruptor 10 kA, caracteristica C, 10 A, 2-poli | D133: NAA | E133: 32.25 | F133: 0 | G133: 32.25 | H133: 8592765003973 | I133: 6 | J133: 18592765003970 | K133: 72 | L133: 28592765003977 | M133: 8536201090 | N133: 0.24
A134: 100397 | B134: Ex9BH 2P C13 | C134: Mini-întreruptor 10 kA, caracteristica C, 13 A, 2-poli | D134: NAA | E134: 34.11 | F134: 0 | G134: 34.11 | H134: 8592765003980 | I134: 6 | J134: 18592765003987 | K134: 72 | L134: 28592765003984 | M134: 8536201090 | N134: 0.24
A135: 100398 | B135: Ex9BH 2P C16 | C135: Mini-întreruptor 10 kA, caracteristica C, 16 A, 2-poli | D135: NAA | E135: 32.25 | F135: =NAA -> 0 | G135: =E135*(1-F135) -> 32.25 | H135: 8592765003997 | I135: 6 | J135: 18592765003994 | K135: 72 | L135: 28592765003991 | M135: 8536201090 | N135: 0.24
A136: 100399 | B136: Ex9BH 2P C20 | C136: Mini-întreruptor 10 kA, caracteristica C, 20 A, 2-poli | D136: NAA | E136: 37.48 | F136: 0 | G136: 37.48 | H136: 8592765004000 | I136: 6 | J136: 18592765004007 | K136: 72 | L136: 28592765004004 | M136: 8536201090 | N136: 0.24
A137: 100400 | B137: Ex9BH 2P C25 | C137: Mini-întreruptor 10 kA, caracteristica C, 25 A, 2-poli | D137: NAA | E137: 37.48 | F137: 0 | G137: 37.48 | H137: 8592765004017 | I137: 6 | J137: 18592765004014 | K137: 72 | L137: 28592765004011 | M137: 8536201090 | N137: 0.24
A138: 100401 | B138: Ex9BH 2P C32 | C138: Mini-întreruptor 10 kA, caracteristica C, 32 A, 2-poli | D138: NAA | E138: 37.48 | F138: 0 | G138: 37.48 | H138: 8592765004024 | I138: 6 | J138: 18592765004021 | K138: 72 | L138: 28592765004028 | M138: 8536201090 | N138: 0.24
A139: 100402 | B139: Ex9BH 2P C40 | C139: Mini-întreruptor 10 kA, caracteristica C, 40 A, 2-poli | D139: NAA | E139: 37.48 | F139: 0 | G139: 37.48 | H139: 8592765004031 | I139: 6 | J139: 18592765004038 | K139: 72 | L139: 28592765004035 | M139: 8536201090 | N139: 0.24
A140: 100403 | B140: Ex9BH 2P C50 | C140: Mini-întreruptor 10 kA, caracteristica C, 50 A, 2-poli | D140: NAA | E140: 77.2 | F140: 0 | G140: 77.2 | H140: 8592765004048 | I140: 6 | J140: 18592765004045 | K140: 72 | L140: 28592765004042 | M140: 8536201090 | N140: 0.24
A141: 100404 | B141: Ex9BH 2P C63 | C141: Mini-întreruptor 10 kA, caracteristica C, 63 A, 2-poli | D141: NAA | E141: 77.2 | F141: 0 | G141: 77.2 | H141: 8592765004055 | I141: 6 | J141: 18592765004052 | K141: 72 | L141: 28592765004059 | M141: 8536201090 | N141: 0.24
A142: 100405 | B142: Ex9BH 3P C1 | C142: Mini-întreruptor 10 kA, caracteristica C, 1 A, 3-poli | D142: NAA | E142: 95.82 | F142: 0 | G142: 95.82 | H142: 8592765004062 | I142: 4 | J142: 18592765004069 | K142: 48 | L142: 28592765004066 | M142: 8536201090 | N142: 0.36
A143: 100406 | B143: Ex9BH 3P C2 | C143: Mini-întreruptor 10 kA, caracteristica C, 2 A, 3-poli | D143: NAA | E143: 89.16 | F143: 0 | G143: 89.16 | H143: 8592765004079 | I143: 4 | J143: 18592765004076 | K143: 48 | L143: 28592765004073 | M143: 8536201090 | N143: 0.36
A144: 100407 | B144: Ex9BH 3P C3 | C144: Mini-întreruptor 10 kA, caracteristica C, 3 A, 3-poli | D144: NAA | E144: 82.73 | F144: 0 | G144: 82.73 | H144: 8592765004086 | I144: 4 | J144: 18592765004083 | K144: 48 | L144: 28592765004080 | M144: 8536201090 | N144: 0.36
A145: 100408 | B145: Ex9BH 3P C4 | C145: Mini-întreruptor 10 kA, caracteristica C, 4 A, 3-poli | D145: NAA | E145: 70.38 | F145: 0 | G145: 70.38 | H145: 8592765004093 | I145: 4 | J145: 18592765004090 | K145: 48 | L145: 28592765004097 | M145: 8536201090 | N145: 0.36
A146: 100409 | B146: Ex9BH 3P C6 | C146: Mini-întreruptor 10 kA, caracteristica C, 6 A, 3-poli | D146: NAA | E146: 49.3 | F146: 0 | G146: 49.3 | H146: 8592765004109 | I146: 4 | J146: 18592765004106 | K146: 48 | L146: 28592765004103 | M146: 8536201090 | N146: 0.36
A147: 100410 | B147: Ex9BH 3P C8 | C147: Mini-întreruptor 10 kA, caracteristica C, 8 A, 3-poli | D147: NAA | E147: 52.12 | F147: 0 | G147: 52.12 | H147: 8592765004116 | I147: 4 | J147: 18592765004113 | K147: 48 | L147: 28592765004110 | M147: 8536201090 | N147: 0.36
A148: 100411 | B148: Ex9BH 3P C10 | C148: Mini-întreruptor 10 kA, caracteristica C, 10 A, 3-poli | D148: NAA | E148: 49.3 | F148: 0 | G148: 49.3 | H148: 8592765004123 | I148: 4 | J148: 18592765004120 | K148: 48 | L148: 28592765004127 | M148: 8536201090 | N148: 0.36
A149: 100412 | B149: Ex9BH 3P C13 | C149: Mini-întreruptor 10 kA, caracteristica C, 13 A, 3-poli | D149: NAA | E149: 52.12 | F149: 0 | G149: 52.12 | H149: 8592765004130 | I149: 4 | J149: 18592765004137 | K149: 48 | L149: 28592765004134 | M149: 8536201090 | N149: 0.36
A150: 100413 | B150: Ex9BH 3P C16 | C150: Mini-întreruptor 10 kA, caracteristica C, 16 A, 3-poli | D150: NAA | E150: 49.3 | F150: 0 | G150: 49.3 | H150: 8592765004147 | I150: 4 | J150: 18592765004144 | K150: 48 | L150: 28592765004141 | M150: 8536201090 | N150: 0.36
A151: 100414 | B151: Ex9BH 3P C20 | C151: Mini-întreruptor 10 kA, caracteristica C, 20 A, 3-poli | D151: NAA | E151: 55.81 | F151: 0 | G151: 55.81 | H151: 8592765004154 | I151: 4 | J151: 18592765004151 | K151: 48 | L151: 28592765004158 | M151: 8536201090 | N151: 0.36
A152: 100415 | B152: Ex9BH 3P C25 | C152: Mini-întreruptor 10 kA, caracteristica C, 25 A, 3-poli | D152: NAA | E152: 55.81 | F152: 0 | G152: 55.81 | H152: 8592765004161 | I152: 4 | J152: 18592765004168 | K152: 48 | L152: 28592765004165 | M152: 8536201090 | N152: 0.36
A153: 100416 | B153: Ex9BH 3P C32 | C153: Mini-întreruptor 10 kA, caracteristica C, 32 A, 3-poli | D153: NAA | E153: 55.81 | F153: 0 | G153: 55.81 | H153: 8592765004178 | I153: 4 | J153: 18592765004175 | K153: 48 | L153: 28592765004172 | M153: 8536201090 | N153: 0.36
A154: 100417 | B154: Ex9BH 3P C40 | C154: Mini-întreruptor 10 kA, caracteristica C, 40 A, 3-poli | D154: NAA | E154: 55.81 | F154: 0 | G154: 55.81 | H154: 8592765004185 | I154: 4 | J154: 18592765004182 | K154: 48 | L154: 28592765004189 | M154: 8536201090 | N154: 0.36
A155: 100418 | B155: Ex9BH 3P C50 | C155: Mini-întreruptor 10 kA, caracteristica C, 50 A, 3-poli | D155: NAA | E155: 116.26 | F155: 0 | G155: 116.26 | H155: 8592765004192 | I155: 4 | J155: 18592765004199 | K155: 48 | L155: 28592765004196 | M155: 8536201090 | N155: 0.36
A156: 100419 | B156: Ex9BH 3P C63 | C156: Mini-întreruptor 10 kA, caracteristica C, 63 A, 3-poli | D156: NAA | E156: 116.26 | F156: 0 | G156: 116.26 | H156: 8592765004208 | I156: 4 | J156: 18592765004205 | K156: 48 | L156: 28592765004202 | M156: 8536201090 | N156: 0.36
A157: 100420 | B157: Ex9BH 3PN C1 | C157: Mini-întreruptor 10 kA, caracteristica C, 1 A, 3+Npoli | D157: NAA | E157: 143.71 | F157: 0 | G157: 143.71 | H157: 8592765004215 | I157: 3 | J157: 18592765004212 | K157: 36 | L157: 28592765004219 | M157: 8536201090 | N157: 0.48
A158: 100421 | B158: Ex9BH 3PN C2 | C158: Mini-întreruptor 10 kA, caracteristica C, 2 A, 3+Npoli | D158: NAA | E158: 130.65 | F158: 0 | G158: 130.65 | H158: 8592765004222 | I158: 3 | J158: 18592765004229 | K158: 36 | L158: 28592765004226 | M158: 8536201090 | N158: 0.48
A159: 100422 | B159: Ex9BH 3PN C3 | C159: Mini-întreruptor 10 kA, caracteristica C, 3 A, 3+Npoli | D159: NAA | E159: 114.29 | F159: 0 | G159: 114.29 | H159: 8592765004239 | I159: 3 | J159: 18592765004236 | K159: 36 | L159: 28592765004233 | M159: 8536201090 | N159: 0.48
A160: 100423 | B160: Ex9BH 3PN C4 | C160: Mini-întreruptor 10 kA, caracteristica C, 4 A, 3+Npoli | D160: NAA | E160: 114.29 | F160: 0 | G160: 114.29 | H160: 8592765004246 | I160: 3 | J160: 18592765004243 | K160: 36 | L160: 28592765004240 | M160: 8536201090 | N160: 0.48
A161: 100424 | B161: Ex9BH 3PN C6 | C161: Mini-întreruptor 10 kA, caracteristica C, 6 A, 3+Npoli | D161: NAA | E161: 68.09 | F161: 0 | G161: 68.09 | H161: 8592765004253 | I161: 3 | J161: 18592765004250 | K161: 36 | L161: 28592765004257 | M161: 8536201090 | N161: 0.48
A162: 100425 | B162: Ex9BH 3PN C8 | C162: Mini-întreruptor 10 kA, caracteristica C, 8 A, 3+Npoli | D162: NAA | E162: 70.52 | F162: 0 | G162: 70.52 | H162: 8592765004260 | I162: 3 | J162: 18592765004267 | K162: 36 | L162: 28592765004264 | M162: 8536201090 | N162: 0.48
A163: 100426 | B163: Ex9BH 3PN C10 | C163: Mini-întreruptor 10 kA, caracteristica C, 10 A, 3+Npoli | D163: NAA | E163: 63.55 | F163: 0 | G163: 63.55 | H163: 8592765004277 | I163: 3 | J163: 18592765004274 | K163: 36 | L163: 28592765004271 | M163: 8536201090 | N163: 0.48
A164: 100427 | B164: Ex9BH 3PN C13 | C164: Mini-întreruptor 10 kA, caracteristica C, 13 A, 3+Npoli | D164: NAA | E164: 67.19 | F164: 0 | G164: 67.19 | H164: 8592765004284 | I164: 3 | J164: 18592765004281 | K164: 36 | L164: 28592765004288 | M164: 8536201090 | N164: 0.48
A165: 100428 | B165: Ex9BH 3PN C16 | C165: Mini-întreruptor 10 kA, caracteristica C, 16 A, 3+Npoli | D165: NAA | E165: 63.55 | F165: 0 | G165: 63.55 | H165: 8592765004291 | I165: 3 | J165: 18592765004298 | K165: 36 | L165: 28592765004295 | M165: 8536201090 | N165: 0.48
A166: 100429 | B166: Ex9BH 3PN C20 | C166: Mini-întreruptor 10 kA, caracteristica C, 20 A, 3+Npoli | D166: NAA | E166: 71.46 | F166: 0 | G166: 71.46 | H166: 8592765004307 | I166: 3 | J166: 18592765004304 | K166: 36 | L166: 28592765004301 | M166: 8536201090 | N166: 0.48
A167: 100430 | B167: Ex9BH 3PN C25 | C167: Mini-întreruptor 10 kA, caracteristica C, 25 A, 3+Npoli | D167: NAA | E167: 71.46 | F167: =NAA -> 0 | G167: 71.46 | H167: 8592765004314 | I167: 3 | J167: 18592765004311 | K167: 36 | L167: 28592765004318 | M167: 8536201090 | N167: 0.48
A168: 100431 | B168: Ex9BH 3PN C32 | C168: Mini-întreruptor 10 kA, caracteristica C, 32 A, 3+Npoli | D168: NAA | E168: 76 | F168: 0 | G168: 76 | H168: 8592765004321 | I168: 3 | J168: 18592765004328 | K168: 36 | L168: 28592765004325 | M168: 8536201090 | N168: 0.48
A169: 100432 | B169: Ex9BH 3PN C40 | C169: Mini-întreruptor 10 kA, caracteristica C, 40 A, 3+Npoli | D169: NAA | E169: 78.3 | F169: 0 | G169: 78.3 | H169: 8592765004338 | I169: 3 | J169: 18592765004335 | K169: 36 | L169: 28592765004332 | M169: 8536201090 | N169: 0.48
A170: 100433 | B170: Ex9BH 3PN C50 | C170: Mini-întreruptor 10 kA, caracteristica C, 50 A, 3+Npoli | D170: NAA | E170: 136.06 | F170: 0 | G170: 136.06 | H170: 8592765004345 | I170: 3 | J170: 18592765004342 | K170: 36 | L170: 28592765004349 | M170: 8536201090 | N170: 0.48
A171: 100434 | B171: Ex9BH 3PN C63 | C171: Mini-întreruptor 10 kA, caracteristica C, 63 A, 3+Npoli | D171: NAA | E171: 136.06 | F171: 0 | G171: 136.06 | H171: 8592765004352 | I171: 3 | J171: 18592765004359 | K171: 36 | L171: 28592765004356 | M171: 8536201090 | N171: 0.48
A172: 100435 | B172: Ex9BH 4P C1 | C172: Mini-întreruptor 10 kA, caracteristica C, 1 A, 4-poli | D172: NAA | E172: 168.79 | F172: 0 | G172: 168.79 | H172: 8592765004369 | I172: 3 | J172: 18592765004366 | K172: 36 | L172: 28592765004363 | M172: 8536201090 | N172: 0.48
A173: 100436 | B173: Ex9BH 4P C2 | C173: Mini-întreruptor 10 kA, caracteristica C, 2 A, 4-poli | D173: NAA | E173: 158.04 | F173: 0 | G173: 158.04 | H173: 8592765004376 | I173: 3 | J173: 18592765004373 | K173: 36 | L173: 28592765004370 | M173: 8536201090 | N173: 0.48
A174: 100437 | B174: Ex9BH 4P C3 | C174: Mini-întreruptor 10 kA, caracteristica C, 3 A, 4-poli | D174: NAA | E174: 158.04 | F174: 0 | G174: 158.04 | H174: 8592765004383 | I174: 3 | J174: 18592765004380 | K174: 36 | L174: 28592765004387 | M174: 8536201090 | N174: 0.48
A175: 100438 | B175: Ex9BH 4P C4 | C175: Mini-întreruptor 10 kA, caracteristica C, 4 A, 4-poli | D175: NAA | E175: 125.1 | F175: 0 | G175: 125.1 | H175: 8592765004390 | I175: 3 | J175: 18592765004397 | K175: 36 | L175: 28592765004394 | M175: 8536201090 | N175: 0.48
A176: 100439 | B176: Ex9BH 4P C6 | C176: Mini-întreruptor 10 kA, caracteristica C, 6 A, 4-poli | D176: NAA | E176: 86.52 | F176: 0 | G176: 86.52 | H176: 8592765004406 | I176: 3 | J176: 18592765004403 | K176: 36 | L176: 28592765004400 | M176: 8536201090 | N176: 0.48
A177: 100440 | B177: Ex9BH 4P C8 | C177: Mini-întreruptor 10 kA, caracteristica C, 8 A, 4-poli | D177: NAA | E177: 75.34 | F177: 0 | G177: 75.34 | H177: 8592765004413 | I177: 3 | J177: 18592765004410 | K177: 36 | L177: 28592765004417 | M177: 8536201090 | N177: 0.48
A178: 100441 | B178: Ex9BH 4P C10 | C178: Mini-întreruptor 10 kA, caracteristica C, 10 A, 4-poli | D178: NAA | E178: 68.53 | F178: 0 | G178: 68.53 | H178: 8592765004420 | I178: 3 | J178: 18592765004427 | K178: 36 | L178: 28592765004424 | M178: 8536201090 | N178: 0.48
A179: 100442 | B179: Ex9BH 4P C13 | C179: Mini-întreruptor 10 kA, caracteristica C, 13 A, 4-poli | D179: NAA | E179: 72.46 | F179: 0 | G179: 72.46 | H179: 8592765004437 | I179: 3 | J179: 18592765004434 | K179: 36 | L179: 28592765004431 | M179: 8536201090 | N179: 0.48
A180: 100443 | B180: Ex9BH 4P C16 | C180: Mini-întreruptor 10 kA, caracteristica C, 16 A, 4-poli | D180: NAA | E180: 68.53 | F180: 0 | G180: 68.53 | H180: 8592765004444 | I180: 3 | J180: 18592765004441 | K180: 36 | L180: 28592765004448 | M180: 8536201090 | N180: 0.48
A181: 100444 | B181: Ex9BH 4P C20 | C181: Mini-întreruptor 10 kA, caracteristica C, 20 A, 4-poli | D181: NAA | E181: 69.94 | F181: 0 | G181: 69.94 | H181: 8592765004451 | I181: 3 | J181: 18592765004458 | K181: 36 | L181: 28592765004455 | M181: 8536201090 | N181: 0.48
A182: 100445 | B182: Ex9BH 4P C25 | C182: Mini-întreruptor 10 kA, caracteristica C, 25 A, 4-poli | D182: NAA | E182: 72.33 | F182: 0 | G182: 72.33 | H182: 8592765004468 | I182: 3 | J182: 18592765004465 | K182: 36 | L182: 28592765004462 | M182: 8536201090 | N182: 0.48
A183: 100446 | B183: Ex9BH 4P C32 | C183: Mini-întreruptor 10 kA, caracteristica C, 32 A, 4-poli | D183: NAA | E183: 72.33 | F183: 0 | G183: 72.33 | H183: 8592765004475 | I183: 3 | J183: 18592765004472 | K183: 36 | L183: 28592765004479 | M183: 8536201090 | N183: 0.48
A184: 100447 | B184: Ex9BH 4P C40 | C184: Mini-întreruptor 10 kA, caracteristica C, 40 A, 4-poli | D184: NAA | E184: 73.82 | F184: 0 | G184: 73.82 | H184: 8592765004482 | I184: 3 | J184: 18592765004489 | K184: 36 | L184: 28592765004486 | M184: 8536201090 | N184: 0.48
A185: 100448 | B185: Ex9BH 4P C50 | C185: Mini-întreruptor 10 kA, caracteristica C, 50 A, 4-poli | D185: NAA | E185: 136.23 | F185: 0 | G185: 136.23 | H185: 8592765004499 | I185: 3 | J185: 18592765004496 | K185: 36 | L185: 28592765004493 | M185: 8536201090 | N185: 0.48
A186: 100449 | B186: Ex9BH 4P C63 | C186: Mini-întreruptor 10 kA, caracteristica C, 63 A, 4-poli | D186: NAA | E186: 144.83 | F186: 0 | G186: 144.83 | H186: 8592765004505 | I186: 3 | J186: 18592765004502 | K186: 36 | L186: 28592765004509 | M186: 8536201090 | N186: 0.48
A187: 100450 | B187: Ex9BH 1P D1 | C187: Mini-întreruptor 10 kA, caracteristica D, 1 A, 1-pol | D187: NAA | E187: 42.55 | F187: 0 | G187: 42.55 | H187: 8592765004512 | I187: 12 | J187: 18592765004519 | K187: 144 | L187: 28592765004516 | M187: 8536201090 | N187: 0.12
A188: 100451 | B188: Ex9BH 1P D2 | C188: Mini-întreruptor 10 kA, caracteristica D, 2 A, 1-pol | D188: NAA | E188: 39.15 | F188: 0 | G188: 39.15 | H188: 8592765004529 | I188: 12 | J188: 18592765004526 | K188: 144 | L188: 28592765004523 | M188: 8536201090 | N188: 0.12
A189: 100452 | B189: Ex9BH 1P D3 | C189: Mini-întreruptor 10 kA, caracteristica D, 3 A, 1-pol | D189: NAA | E189: 42.55 | F189: 0 | G189: 42.55 | H189: 8592765004536 | I189: 12 | J189: 18592765004533 | K189: 144 | L189: 28592765004530 | M189: 8536201090 | N189: 0.12
A190: 100453 | B190: Ex9BH 1P D4 | C190: Mini-întreruptor 10 kA, caracteristica D, 4 A, 1-pol | D190: NAA | E190: 35.68 | F190: 0 | G190: 35.68 | H190: 8592765004543 | I190: 12 | J190: 18592765004540 | K190: 144 | L190: 28592765004547 | M190: 8536201090 | N190: 0.12
A191: 100454 | B191: Ex9BH 1P D6 | C191: Mini-întreruptor 10 kA, caracteristica D, 6 A, 1-pol | D191: NAA | E191: 25.35 | F191: 0 | G191: 25.35 | H191: 8592765004550 | I191: 12 | J191: 18592765004557 | K191: 144 | L191: 28592765004554 | M191: 8536201090 | N191: 0.12
A192: 100455 | B192: Ex9BH 1P D8 | C192: Mini-întreruptor 10 kA, caracteristica D, 8 A, 1-pol | D192: NAA | E192: 21.94 | F192: 0 | G192: 21.94 | H192: 8592765004567 | I192: 12 | J192: 18592765004564 | K192: 144 | L192: 28592765004561 | M192: 8536201090 | N192: 0.12
A193: 100456 | B193: Ex9BH 1P D10 | C193: Mini-întreruptor 10 kA, caracteristica D, 10 A, 1-pol | D193: NAA | E193: 19.33 | F193: 0 | G193: 19.33 | H193: 8592765004574 | I193: 12 | J193: 18592765004571 | K193: 144 | L193: 28592765004578 | M193: 8536201090 | N193: 0.12
A194: 100457 | B194: Ex9BH 1P D13 | C194: Mini-întreruptor 10 kA, caracteristica D, 13 A, 1-pol | D194: NAA | E194: 20.44 | F194: 0 | G194: 20.44 | H194: 8592765004581 | I194: 12 | J194: 18592765004588 | K194: 144 | L194: 28592765004585 | M194: 8536201090 | N194: 0.12
A195: 100458 | B195: Ex9BH 1P D16 | C195: Mini-întreruptor 10 kA, caracteristica D, 16 A, 1-pol | D195: NAA | E195: 19.33 | F195: 0 | G195: 19.33 | H195: 8592765004598 | I195: 12 | J195: 18592765004595 | K195: 144 | L195: 28592765004592 | M195: 8536201090 | N195: 0.12
A196: 100459 | B196: Ex9BH 1P D20 | C196: Mini-întreruptor 10 kA, caracteristica D, 20 A, 1-pol | D196: NAA | E196: 22.07 | F196: 0 | G196: 22.07 | H196: 8592765004604 | I196: 12 | J196: 18592765004601 | K196: 144 | L196: 28592765004608 | M196: 8536201090 | N196: 0.12
A197: 100460 | B197: Ex9BH 1P D25 | C197: Mini-întreruptor 10 kA, caracteristica D, 25 A, 1-pol | D197: NAA | E197: 22.07 | F197: 0 | G197: 22.07 | H197: 8592765004611 | I197: 12 | J197: 18592765004618 | K197: 144 | L197: 28592765004615 | M197: 8536201090 | N197: 0.12
A198: 100461 | B198: Ex9BH 1P D32 | C198: Mini-întreruptor 10 kA, caracteristica D, 32 A, 1-pol | D198: NAA | E198: 22.07 | F198: 0 | G198: 22.07 | H198: 8592765004628 | I198: 12 | J198: 18592765004625 | K198: 144 | L198: 28592765004622 | M198: 8536201090 | N198: 0.12
A199: 100462 | B199: Ex9BH 1P D40 | C199: Mini-întreruptor 10 kA, caracteristica D, 40 A, 1-pol | D199: NAA | E199: 22.07 | F199: =NAA -> 0 | G199: =E199*(1-F199) -> 22.07 | H199: 8592765004635 | I199: 12 | J199: 18592765004632 | K199: 144 | L199: 28592765004639 | M199: 8536201090 | N199: 0.12
A200: 100463 | B200: Ex9BH 1P D50 | C200: Mini-întreruptor 10 kA, caracteristica D, 50 A, 1-pol | D200: NAA | E200: 88.15 | F200: 0 | G200: 88.15 | H200: 8592765004642 | I200: 12 | J200: 18592765004649 | K200: 144 | L200: 28592765004646 | M200: 8536201090 | N200: 0.12
A201: 100464 | B201: Ex9BH 1P D63 | C201: Mini-întreruptor 10 kA, caracteristica D, 63 A, 1-pol | D201: NAA | E201: 88.15 | F201: 0 | G201: 88.15 | H201: 8592765004659 | I201: 12 | J201: 18592765004656 | K201: 144 | L201: 28592765004653 | M201: 8536201090 | N201: 0.12
A202: 100465 | B202: Ex9BH 1PN D1 | C202: Mini-întreruptor 10 kA, caracteristica D, 1 A, 1+Npoli | D202: NAA | E202: 81.65 | F202: 0 | G202: 81.65 | H202: 8592765004666 | I202: 6 | J202: 18592765004663 | K202: 72 | L202: 28592765004660 | M202: 8536201090 | N202: 0.24
... 4239 more rows

Sheet Grup reduceri
A1: Grup de reduceri | B1: Descriere | C1: Reducere
A2: NA | B2: Dispozitive de instalare | C2: 0
A3: NAA | B3: Mini-întrerupătoare 10 kA | C3: =NA -> 0
A4: NAB | B4: Mini-întrerupătoare 6 kA | C4: 0
A5: NAK | B5: Mini-întrerupătoare 4,5kA | C5: =NA -> 0
A6: NAC | B6: Dispozitive cu curent rezidual 10 kA | C6: 0
A7: NAD | B7: Dispozitive cu curent rezidual 6 kA | C7: 0
A8: NAE | B8: Întrerupătoare cu curent rezidual cu protecţie pentru suprasarcină 10 kA | C8: 0
A9: NAF | B9: Întrerupătoare cu curent rezidual cu protecţie pentru suprasarcină 6 kA | C9: 0
A10: NAG | B10: Blocări adăugate ale dispozitivelor de curent rezidual | C10: 0
A11: NAH | B11: Întrerupătoare separatoare | C11: 0
A12: NAI | B12: Mini-întrerupătoare Ex9PN-N, 6 kA | C12: =NA -> 0
A13: NAJ | B13: Mini-întrerupătoare Ex9PN-S, 4,5 kA | C13: 0
A14: NAL | B14: Mini-întrerupătoare DC 10 kA, nepolarizat | C14: 0
A15: NAM | B15: Mini-întrerupătoare DC 6 kA, nepolarizat | C15: 0
A16: NAN | B16: Siguranta de separare DC | C16: =NA -> 0
A17: NAO | B17: Descarcator SPD Ex9UP Clasa 2 pentru aplicatii fotovoltaice | C17: 0
A18: NAP | B18: Mini-întrerupătoare DC 10 kA pentru aplicatii fotovoltaice, nepolarizat | C18: 0
A19: NAQ | B19: Mini-întrerupătoare DC 6 kA pentru aplicatii fotovoltaice, nepolarizat | C19: 0
A20: NAR | B20: Descarcator AC SPD Ex9UE Clasa 1+2, 2 | C20: =NA -> 0
A21: NAS | B21: Releu de instalare şi Contactor de instalare | C21: 0
A22: NAU | B22: Mâner de comutare, Lampă de semnalizare, Sonerie | C22: 0
A23: NAV | B23: Mini-întrerupătoare DC 10 kA, polarizat | C23: 0
A24: NAW | B24: Mini-întrerupătoare 125 A | C24: =NA -> 0
A25: NAX | B25: Ceasuri programabile, Intreruptoar crepuscular, Automat de scara | C25: 0
A26: NAZ | B26: Contor de energie Ex9EM | C26: 0
A27: NAAA | B27: Întreruptoare de curent rezidual cu protecţie pentru suprasarcină și scurtcircuit Ex9NLE | C27: 0
A28: NAAB | B28: Mini-întreruptoare Ex9B40J, 6 kA, lăţime 13,5 mm pe modul | C28: 0
A29: NAAC | B29: Sursa de tensiune, Ex9PS | C29: 0
A31: NB | B31: Dispozitive industriale | C31: 0
A32: NBA | B32: Contactoare, contactoare inversor | C32: =NB -> 0
A33: NBB | B33: Relee de suprasarcină | C33: 0
A34: NBC | B34: Contactoare capacitiv | C34: 0
A35: NBD | B35: Contactoare Ci | C35: 0
A36: NBF | B36: Dispozitive cu montare pe ușă | C36: 0
A37: NBG | B37: Intreruptoare automate pentru protecţia motoarelor | C37: 0
A38: NBH | B38: Releu Plug-in | C38: 0
A39: NBI | B39: Contactor modular si cu comutare manuala | C39: 0
A41: NC | B41: Întrerupătoare cu carcasă turnată şi cu aer | C41: 0
A42: NCA | B42: Întrerupătoare cu carcasă turnată | C42: =NC -> 0
A43: NCB | B43: Întrerupătoare DC cu carcasă turnată | C43: 0
A44: NCC | B44: Intreruptoare automate tip ACB si Intreruptor-separator de sarcina tip ACB | C44: 0
A45: NCD | B45: Separatoare AC | C45: 0
A46: NCE | B46: Separatoare DC | C46: 0
A47: NCF | B47: Întreruptor automat, tip MCCB, cu bloc declanșator electronic | C47: 0
A49: ND | B49: Panouri de distribuţie şi sisteme de conectare | C49: 0
A50: NDA | B50: Cofreti de distributie din plastic | C50: =ND -> 0
A51: NDB | B51: Bare colectoare | C51: 0
A52: NDC | B52: Cofrete de distributie cu usa alba din table plata | C52: 0
A53: NDD | B53: Tablouri metalice de distributie plate | C53: 0
A54: NDE | B54: Blocuri de distribuţie | C54: 0
A55: NDF | B55: Cofrete si carcase de distributie potrivit pentru pereţi cu imperfecţiuni | C55: 0
A56: NDG | B56: Cofret termorezistent (GRP), FHS | C56: =ND -> 0
A57: NDH | B57: Cutie metalică IP66 | C57: =ND -> 0
A58: NDI | B58: Dulap metalic | C58: =ND -> 0
A59: NDAA | B59: Cofreti de distributie din plastic PHS | C59: =ND -> 0
A61: NE | B61: Fuse systems | C61: 0
A62: NEA | B62: Siguranta de separare | C62: =NE -> 0
A63: NEB | B63: Separatoare cu siguranţe fuzibile cilindrice | C63: =NE -> 0
A65: NF | B65: Pre-wired boards | C65: 0
A66: NFB | B66: DC boards for PV applications | C66: =NF -> 0
A68: NG | B68: Aplicatii fotovoltaice | C68: 0
A69: NGC | B69: Dispozitiv de monitorizare | C69: =NG -> 0
A70: NDG | B70: Încărcător EV | C70: =NG -> 0
A72: EP | B72: Elko EP | C72: 0
A73: EPA | B73: Relays | C73: =EP -> 0
A74: EPB | B74: iNELS | C74: =EP -> 0

Sheet Comanda
A1: Comanda nr.
A2: Furnizor:
A3: NOARK Electric S.R.L. | D3: CUI: 29327095 | F3: Cod TVA:
A4: Bucuresti, Calea Rahovei nr. 266 - 268 | D4: Cont: RO17CITI0000000724460003 | F4: Banca: Citibank Romania
A5: Corp 3, et. 1, cam. 09 sector 5, | D5: "Persoană de contact" | F5: Tel.:
A6: Electromagnetica Business Park | D6: E-mail:
A7: Cumpărător: | D7: ID Client: | F7: Data:
D8: CUI: | F8: Cod TVA:
D9: Cont: | F9: Banca:
D10: "Persoană de contact" | F10: Tel.:
D11: E-mail:
A13: Nr. crt. | B13: Nr. articol | C13: Tip | D13: Descriere | E13: Grup de reducere | F13: Preţ cu reducere (RON) | G13: Bucăţi | H13: Preţ total (RON)
H14: 0
E18: Pret total comanda: | H18: =SUM(H14:H14) -> 0
A20: Preţurile nu includ TVA. Toate acordurile privind preţul, sfera de aplicabilitate a livrării precum şi livrarea sunt definite
A21: în Condiţiile Comerciale Generale sau în Contractul Cadru şi în anexele acestuia.

Sheet Oferta
A1: Oferta nr.
A2: Furnizor:
A3: NOARK Electric S.R.L. | D3: CUI: 29327095 | F3: Cod TVA:
A4: Bucuresti, Calea Rahovei nr. 266 - 268 | D4: Cont: RO17CITI0000000724460003 | F4: Banca: Citibank Romania
A5: Corp 3, et. 1, cam. 09 sector 5, | D5: "Persoană de contact" | F5: Tel.:
A6: Electromagnetica Business Park | D6: E-mail:
A7: Cumpărător: | D7: ID Client: | F7: Data:
D8: CUI: | F8: Nr. TVA:
D9: Cont: | F9: Banca:
D10: "Persoană de contact" | F10: Tel.:
D11: E-mail:
A13: Nr. crt. | B13: Nr. articol | C13: Tip | D13: Descriere | E13: Grup de reducere | F13: Preţ cu reducere (RON) | G13: Bucăţi | H13: Preţ total (RON)
H14: 0
E18: Pret total oferta: | H18: =SUM(H14:H14) -> 0
A20: Preţurile nu includ TVA. Toate acordurile privind preţul, sfera de aplicabilitate a livrării precum şi livrarea sunt definite
A21: Iîn Condiţiile Comerciale Generale sau în Contractul Cadru şi în anexele acestuia.
A22: Prețul este valabil pentru produsele și cantitățile solicitate într-o singură comandă.
A23: Dacă cererea se modifică, atunci prețul se schimbă în funcție de produse și cantități.

Sheet Terme şi Condiţii Generale
B1: ______________________________________________________
B2: Termene şi Condiţii Generale
B3: ______________________________________________________
B7: I. PREVEDERI INTRODUCTIVE
B8: I.1 Aceste Termene şi Condiţii Generale („TCG”) ale NOARK Electric [__], cu sediul social în [__], înregistrată la Oficiul Registrului Comerţului [__] sub nr. de ordine [__], cod de înregistrare fiscală [__], legal reprezentată prin [__], în calitate de [__], („Vânzătorul”), stabilesc drepturile şi obligaţiile reciproce ale Vânzătorului şi persoanei („Cumpărătorul”) care este interesată să cumpere bunurile oferite de Vânzător („Bunurile”) în lista de preţuri actuală a Bunurilor („Lista de preţuri”).
B9: I.2 În cazul în care nu s-a încheiat un contract cadru („Contractul Cadru”) care să specifice aranjamentele diferite conform punctelor individuale între Vânzător şi Cumpărător (menţionate împreună „Părţile”, aceste TCG şi Contractul de Cumpărare (aşa cum sunt definite mai jos) vor reprezenta contractul integral şi final dintre Părţi privind termenele şi condiţiile pentru livrarea şi recepţia Bunurilor.
B10: II. COMANDA DE CUMPĂRARE PENTRU BUNURI
B11: II.1 Cumpărătorului i s-a adus la cunoştinţă de către Vânzător conţinutul acestor TCG şi, în baza acestor TCG şi a altor informaţii furnizate de Vânzător, Cumpărătorul şi-a exprimat acordul, printr-o comandă de cumpărare („Comanda de Cumpărare”) să cumpere aceste Bunuri de la Vânzător la preţul indicat în Lista de Preţuri sau convenit altfel („Preţul de Cumpărare”).
B12: II.2 O Comandă de Cumpărare va include întotdeauna: (a) datele de identificare ale persoanei autorizate să acţioneze în numele sau pentru Cumpărător, (b) descrierea (codul) Bunurilor comandate conform Listei de Preţuri şi cantitatea acestora şi (c) metoda de livrare a Bunurilor. Cumpărătorul îi va trimite Vânzătorului personal Comanda de Cumpărare completată, prin poştă la adresa Vânzătorului indicată în Contractul Cadru sau în Comanda de Cumpărare, prin e-mail sau în orice alt fel convenit între Părţi. Comanda de Cumpărare va fi considerată ca fiind o propunere de semnare a unui contract de cumpărare individual („Contract de Cumpărare”) şi, drept urmare, va deveni obligatoriu începând cu trimiterea acesteia la Vânzător. Prin trimiterea Comenzii de Cumpărare, Cumpărătorul îşi dă acordul explicit faţă de Contractul de Cumpărare (şi toate obligaţiile ce reies din acesta), fiind guvernat de TCG. Vânzătorul va fi obligat să marcheze data primirii Comenzii de Comandă. Contractul de Comandă va fi încheiat la semnarea de către Vânzător a Comenzii de Cumpărare şi poate fi încheiat doar cu acordul Părţilor.
B13: III. PREŢ DE CUMPĂRARE, FACTURARE, TERMENE ŞI CONDIŢII DE PLATĂ
B14: III.1 Pentru Bunurile livrate, Cumpărătorul va fi obligat să îi plătească Vânzătorului Preţul de Cumpărare stabilit conform Listei de Preţuri valabile sau convenite altfel de Părţi. Vânzătorul va avea dreptul să aducă schimbări Listei de Preţuri în orice moment sau în mod unilateral; totuşi, nicio schimbare sau modificare adusă Listei de Preţuri nu se va aplica Bunurilor comandate conform Comenzilor de Cumpărare trimise Vânzătorului înainte de data acestei schimbări sau modificări. Se va publica o Listă de Preţuri actualizată menţionând data intrării în vigoare pe pagina de internet a Vânzătorului sau va fi trimisă Cumpărătorului printr-un e-mail.
B15: III.2 Cu excepţia cazului în care se stabileşte contrariul între Vânzător şi Cumpărător, Preţul de Cumpărare nu va include costurile de ambalare, de transport, de manipulare, de instalare şi de punere în funcţiune a Bunurilor sau costurile pentru eliminarea sau reciclarea ambalajelor („Alte costuri”). Suma Altor Costuri va fi menţionată în Lista de Preţuri şi va fi întotdeauna adăugată la Preţul de Cumpărare. Oriunde se foloseşte termenul de „Preţ de Cumpărare” în prezentele TCG, va fi înţeles ca preţul pentru Bunuri şi Alte Costuri.
B16: III.3 Preţul de cumpărare va fi scadent şi plătibil în decurs de (7) zile de la data de emitere a documentului fiscal respectiv (factură pro-formă) Cumpărătorul va plăti suma respectivă prin transfer bancar în contul Vânzătorului menţionat în factura aferentă sau menţionat altfel Cumpăătorului. Preţul de cumpărare va fi considerat plătit la data când contul respectiv al Vânzătorului este creditată cu suma integrală.
B17: III.4 În cazul în care Cumpărătorul a întârziat să plătească orice factură, Vânzătorul va avea dreptul să solicite o penalizare contractuală în valoare de 0,05% din suma scadentă pentru fiecare zi de întârziere. Suma totala a penalitatilor poate depasi valoarea contractului.
B18: IV. LIVRAREA BUNURILOR
B19: IV.1 Bunurile pot fi livrate doar după ce s-a plătit integral Preţul de Cumpărare. Vânzătorul va avea dreptul să suspende perioada de livrare a Bunurilor pe durata întârzierii de plată de către Cumpărător a oricăreia dintre sumele ce rezultă din Contractul Cadru sau din Contractul de Cumpărare. O astfel de întârziere la livrarea Bunurilor nu va fi considerată o încălcare a Contractului de Cumpărare sau a Contractului Cadru.
B20: IV.2 Vânzătorul va fi obligat să livreze Bunurile Cumpărătorului prin trimiterea acestora la adresa Cumpărătorului conform celor indicate în Comanda de Cumpărare sau, după caz, la o altă adresă menţionată Vânzătorului („Încărcătura”). Obligaţia Vânzătorului va fi considerată ca fiind respectată corespunzător şi că Bunurile au fost livrate Cumpărătorului la momentul în care Încărcătura este predată spre a fi transportată primului transportator. Încărcătura va fi întotdeauna marcată în mod clar şi suficient ca încărcătură pentru Cumpărător; livrarea Bunurilor va fi astfel considerată îndeplinită la predarea Încărcăturii către transportator. Conform Codului Comercial, riscul de deteriorare a Bunurilor va fi transferat Cumpărătorului la momentul predării Încărcăturii primului transportator pentru transportare la locul de livrare.
B21: V. Achiziţia titlului de proprietate asupra bunurilor
B22: V.1 Cumpărătorul va achiziţiona titlul de proprietate asupra Bunurilor la predarea acestora către Cumpărător, cu condiţia ca Preţul de Cumpărare să fi fost plătit de către Cumpărător.
B23: VI. Garanţie
B24: VI.1 Vânzătorul îi va oferi Cumpărătorului o garanţie de calitate pentru Bunuri; perioada de garanţie va fi de cinci (5) ani de la data acceptării Bunurilor de către Cumpărător („Perioada de Garanţie”). Odată cu garanţia de calitate, Vânzătorul asigură că Bunurile cumpărate de către Cumpărător vor fi potrivite pentru scopul agreat de folosire pe parcursul Perioadei de Garanţie specificată. Garantia este conforma cu Legea 449/2003 privind vanzarea si garantia produselor, cu Legea 296/2004 si cu OG 21/1992 privind protectia consumatorilor, modificata si completata ulterior inclusiv cu Legea 476/2006.
B25: VI.2 Garanţia nu se aplica în special defecţiunilor provocate de sau rezultând din:
B26: (a) Depozitarea necorespunzătoare a Bunurilor înainte de instalarea sau de punerea în funcţiune a acestora;
B27: (b) Instalarea necorespunzătoare a Bunurilor, proiectată necorespunzător sau efectuată greşit sau folosirea necorespunzătoare a Bunurilor;
B28: (c) Uzura normală aferentă duratei de viaţă obişnuită a Bunurilor şi folosirii acestora în mod regulat (de ex., varistorul dispozitivelor de protecţie a tensiunii împotriva supratensiunii);
B29: (d) Folosirea excesivă a Bunurilor, şi anume folosirea acestora contrar recomandărilor şi instrucţiunilor Vânzătorului (de ex., depăşind numărul de cicluri de funcţionare stabilit);
B30: (e) Orice schimbare sau modificare a Bunurilor efectuată de Cumpărător sau de către un terţ, cu excepţia persoanelor desemnate sau aprobate de către Vânzător;
B31: (f) Factori externi ce depăşesc controlul Vânzătorului;
B32: (g) Forţă majoră, acoperind în special inundaţii, incendii, fulgere, cutremure, greve sau revolte civile.
B33: VI.3 Excepţiile de la Garanţie sunt specificate în detaliu în regulile privind gestionarea reclamaţiilor, care sunt disponibile pe pagina de internet a Vânzătorului („Regulile privind Gestionarea Reclamaţiilor”).
B34: VII. RECLAMAŢII ŞI GARANŢIE EUROPEANĂ
B35: VII.1 Cumpărătorul are dreptul să depună reclamaţii acoperite de răspunderea pentru un defect al Bunurilor ce apare în timpul Perioadei de Garanţie („Reclamaţie”) la orice sucursală de pe lista furnizată Cumpărătorului în momentul cumpărării Bunurilor şi disponibilă pe pagina de internet a Vânzătorului („Lista”). Conform termenelor şi condiţiilor prezentelor Reguli privind Gestionarea Reclamaţiilor, Cumpărătorul are dreptul să depună o Reclamaţie şi în afara teritoriului ţării în care au fost cumpărate Bunurile.
B36: VII.2 Cumpărătorul acceptă prin prezentul că excepţiile de la Garanţie, termenele şi condiţiile de depunere a Reclamaţiei şi circumstanţele în care o Reclamaţia nu va fi acceptată ca justificată vor fi guvernate de Regulile privind Gestiunea Reclamaţiilor, al căror conţinut i-a fost făcut cunoscut Cumpărătorului înainte de încheierea prezentului Contract.
B37: VIII. ÎNŞTIINŢĂRI
B38: VIII.1 Dacă nu se menţionează contrariul, toate înştiinţările, mesajele sau ale comunicaţii dintre Părţi trebuie să fie făcute în scris. Părţile vor fi obligate să trimită documentele scrise una alteia la adresele menţionate în Contractul Cadru sau în Contractul de Cumpărare sau menţionate altfel de către Părţi: (a) prin livrare personală cu confirmare de primire; (b) prin scrisoare recomandată; (c) printr-un serviciu de curierat cu confirmare de primire; sau (d) prin e-mail. Orice acţiuni ce afectează începerea, modificarea sau rezilierea Contractului Cadru sau a Contractului de Cumpărare trebuie să fie trimise doar în scris la adresa sediului social sau la adresa menţionată în Contractul Cadru. În cazul în care oricare dintre Părţi refuză să accepte o încărcătură trimisă conform prezentelor TCG, încărcătura va fi considerată livrată la data refuzării recepţiei de către destinatar. În cazul în care Partea menţionată ca destinatar al unui document scris ce trebuie livrat personal nu a fost găsită, documentul scris va fi la oficiul poştal şi destinatarul va fi chemat în mod corespunzător să îşi revendice documentul scris. Dacă destinatarul nu ridică încărcătura în decurs de zece (10) zile de la data înregistrării, încărcătura va fi considerată livrată în ultima zi a acestei perioade.
B39: VIII.2 Părţile se obligă să se informeze în scris şi fără întârziere în legătură cu orice schimbări ale datelor menţionate în Contractul Cadru sau în Contractul de Cumpărare. În cazul în care oricare dintre Părţi încalcă această obligaţie, orice corespondenţă trimisă la ultima adresă cunoscută a acestei Părţi va fi considerată trimisă deşi destinatarul nu mai stă a acea adresă şi, drept urmare, nu a avut posibilitatea de a cunoaşte conţinutul încărcăturii.
B40: IX . PREVEDERI FINALE
B41: Contractul Cadru şi Contractul de Cumpărare (incluzând relaţiile ce reies din acestea) vor fi guvernate de legea Romana
B42: Partile vor depune toate eforturile pentru a rezolva pe cale amiabilă, prin tratative directe, orice neînţelegere sau dispută care se poate ivi între ei în cadrul sau în legătură cu îndeplinirea contractului.Dacă, după 5 de zile de la începerea acestor tratative, partile nu reuşesc să rezolve în mod amiabil o divergenţă contractuală, fiecare poate solicita ca disputa să se soluţioneze de către instanţele judecătoreşti competente din România.
B43: Vanzatorul isi rezerva dreptul de a cesiona toate drepturile si obligatiile ce decurg din acest contract inclusiv creanta care deriva din obligatiile de plata ale cumparatorului fara o notificare prealabila a acestuia. Cumparatorul nu are dreptul să cesioneze drepturile şi obligaţiile sale rezultate din acest contract unei terţe persoane.Orice notificare sau comunicare adresată de o parte celeilalte părţi va fi considerată valabil îndeplinită dacă va fi transmisă acesteia la adresa menţionată în prezentul contract. În cazul în care o parte contractantă îşi schimbă sediul, aceasta este obligată să notifice celeilalte părţi noua adresă în termen de cel mult 3 zile de la data acestei modificări.
B44: Modificarea prezentului contract poate fi făcută numai în scris, prin acordul părţilor
B45: Prezentul Contract şi relaţiile dintre Părţile contractuale ce apar din prezentul vor fi guvernate de legea romana.
B46: Prezentul Contract va intra în vigoare şi avea efecte legale la semnarea acestuia de către ambele Părţi contractante. Conţinutul Contractului poate fi schimbat doar în baza unui acord în scris între Părţile contractante semnat de ambele Părţi contractante.
B47: TCG vor intra în vigoare începând cu [•] 2011.

Sheet Reguli privind gestionarea recl
B1: ______________________________________________________
B2: REGULI PRIVIND GESTIONAREA RECLAMAŢIILOR
B3: ______________________________________________________
B6: I. PREVEDERI INTRODUCTIVE
B7: I.1 Prezentele Reguli privind Gestionarea Reclamaţiilor („Reguli privind Gestionarea Reclamaţiilor”) ale Aceste Termene şi Condiţii Generale („TCG”) ale NOARK Electric [__], cu sediul social în [__], înregistrată la Oficiul Registrului Comerţului [__] sub nr. de ordine [__], cod de înregistrare fiscală [__], legal reprezentată prin [__], în calitate de [__], („Vânzător”) stabilesc drepturile şi responsabilităţile reciproce care rezultă din răspunderea faţă de furnizarea de bunuri defecte pe piaţă de către Vânzător („Bunuri”) şi persoana care a cumpărat aceste Bunuri în scopul folosirii acestora („Cumpărător”). Dacă nu se menţionează contrariul în prezentul, termenii cu primele litere scrise cu majusculă au acelaşi înţeles menţionat în Termenele şi Condiţiile Generale („TCG”), disponibile pe pagina de internet ale Vânzătorului.
B8: II. GARANŢIE
B9: II.1 Vânzătorul îi acordă Cumpărătorului o garanţie ce acoperă calitatea Bunurilor, pe o durată de cinci (5) ani de la data primirii Bunurilor de către Cumpărător (menţionată în continuare „Perioada de garanţie”). Garantia este conforma cu Legea 449/2003 privind vanzarea si garantia produselor, cu Legea 296/2004 si cu OG 21/1992 privind protectia consumatorilor, modificata si completata ulterior inclusiv cu Legea 476/2006 Cu această garanţie privind calitatea, Vânzătorul se obligă pe durata Perioadei de garanţie ca Bunurile achiziţionate de Cumpărător să fie corespunzătoare pentru a fi folosite în scopul convenit.
B10: II.2 Garanţia nu se aplică defectelor provocate sau suferite în mod special în urma:
B11: (a) depozitării necorespunzătoare a Bunurilor înainte de instalare şi punere în funcţiune, şi anume prin stocare într-o zonă şi în condiţii care nu respectă standardele corespunzătoare ale produselor şi Declaraţia de Conformitate (dacă Vânzătorul nu stipulează contrariul în scris), condiţiile menţionate în TCG, Manualul utilizatorului, catalogul sau orice alt document emis sau indicat de Vânzător în acest sens;
B12: (b) instalarea necorespunzătoare a Bunurilor, proiectată greşit sau efectuată greşit, referindu-se în special la instalarea efectuată contrar condiţiilor şi cerinţelor menţionate în orice din documentele menţionate la punctul a) de mai sus;
B13: (c) folosirea incorectă a Bunurilor, şi anume în special folosirea Bunurilor contrar oricăruia din documentele menţionate la punctul a) de mai sus;
B14: (d) folosirea Bunurilor într-u alt scop faţă de cel definit în oricare din documentele menţionate la punctul a) de mai sus;
B15: (e) uzura Bunurilor prin folosirea Bunurilor pe parcursul vieţii normale de funcţionare a Bunurilor şi prin folosire normală (de ex., varistor cu dispozitive de protecţie contra suprapresiunii);
B16: (f) folosirea excesivă a Bunurilor, şi anume folosirea contrar recomandărilor sau instrucţiunilor Vânzătorului (de ex., prin depăşirea numărului de cicluri de funcţionare declarate);
B17: (g) folosirea Bunurilor contrar oricăror condiţii de funcţionare sau de instalare menţionate într-un standard al unui produs sau în orice alt document menţionat la punctul a) de mai sus;
B18: (h) folosirea Bunurilor într-un mediu sau o zonă afectate de factori externi şi/sau dacă un astfel de mediu sau zonă nu corespunde condiţiilor stipulate sau recomandate de Vânzător;
B19: (i) întreţinerea incorectă a Bunurilor, şi anume în special întreţinere realizată contrar oricăruia din documentele menţionate la punctul a) de mai sus;
B20: (j) cuplarea Bunurilor la orice alte Bunuri sau orice alt produs sau echipament altfel decât conform recomandărilor sau specificaţiilor Vânzătorului în oricare din documentele specificate la punctul a) de mai sus;
B21: (k) orice schimbări sau modificări aduse Bunurilor, efectuate de Cumpărător sau de către orice terţ, cu excepţia persoanelor stabilite sau aprobate de Vânzător,
B22: (l) factori externi ce depăşesc controlul Vânzătorului, şi anume în special efectul unei radiaţii solare sau de altă natură, câmp electromagnetic, infiltrarea apei, prafului, polinului sau a oricăror alte obiecte, supratensiune în sistemul electric, fluctuaţii ale tensiunii liniei, supratensiune sau scurt-circuit la bornele de intrare sau de ieşire, tensiune generată de descărcări electrostatice (incl. fulger), alimentare sau tensiune de alimentare incorecte, polaritate necorespunzătoare a tensiunii sau impactul proceselor chimice; şi
B23: (m) evenimente de forţă majoră, incluzând dar nelimitându-se la inundaţii, incendii, fulger, cutremur, grevă sau revolte civile.
B24: II.3 Dacă Bunurile nu sunt defecte, dar nu îndeplinesc funcţiile stabilite sau la care se aşteaptă Cumpărătorul, sau dacă Bunurile nu îndeplinesc aceste funcţii din cauza instalării proiectată sau efectuată într-un mod care împiedică în mod obiectiv Bunurile să îndeplinească aceste funcţii, această situaţie nu este considerată a intra în conflict cu Contractul de Cumpărare şi nu se va accepta aplicarea garanţiei în acest caz. Mai mult, nu se va considera defect nicio discrepanţă la nivelul dimensiunii, culorii sau formei Bunurilor comparativ cu reprezentarea acestora într-un catalog sau în orice alt document al Vânzătorului.
B25: III. RECLAMAŢII ŞI GARANŢIE EUROPEANĂ
B26: III.1 Cumpărătorul are dreptul să depună reclamaţii acoperite de răspunderea pentru un defect al Bunurilor ce apare în timpul Perioadei de Garanţie (menţionată în continuare „Reclamaţie”) la orice magazin de pe lista furnizată Cumpărătorului în momentul cumpărării Bunurilor sau disponibilă pe pagina de internet a Vânzătorului (menţionată în continuare „Lista”).
B27: III.2 Conform termenelor prezentelor Reguli privind Gestionarea Reclamaţiilor, Cumpărătorul are dreptul să depună reclamaţii şi în afara teritoriului ţării în care au fost cumpărate Bunurile, cu condiţia ca această altă ţară (spaţiul comercial) să fie pe Listă.
B28: III.3 Pentru ca reclamaţia să fie primită, trebuie să se îndeplinească următoarele condiţii:
B29: (a) identificarea unei persoane ce a cumpărat Bunurile şi are o Reclamaţie;
B30: (b) identificarea Bunurilor ce fac obiectul Reclamaţiei (tip, cod şi alte detalii de identificare a Bunurilor);
B31: (c) prezentarea certificatului original de cumpărare a Bunurilor;
B32: (d) completarea unui formular de reclamaţii în limba ţării respective în care se aduce Reclamaţia;
B33: (e) o descriere detaliată a Bunurilor şi modul în care se face vizibil defectul;
B34: (f) o descriere detaliată a tehnicii de punere în funcţiune şi de folosire a Bunurilor;
B35: (g) metoda preferată de gestiune a Reclamaţiei; şi
B36: (h) depunerea Reclamaţiei exclusiv într-un centru de reparaţii autorizat enumerat în Listă.
B37: III.4 Reclamaţia va fi gestionată fără întârziere prin următoarea metodă:
B38: (a) dacă defectul este reparabil, Cumpărătorul are dreptul să solicite (i) remedierea defectului prin repararea Bunului, (ii) are dreptul la livrarea Bunurilor lipsă; sau (iii) la o reducere corespunzătoare din Preţul de Cumpărare; şi
B39: (b) dacă defectul este ireparabil, Cumpărătorul are dreptul să solicite (i) înlocuirea Bunurilor; (ii) are dreptul la o reducere a Preţului de Cumpărare; sau Cumpărătorul se poate retrage din Contractul de Cumpărare.
B40: III.5 Cumpărătorul recunoaşte că dacă aduce o Reclamaţie (i) într-o altă ţară decât în cea unde a fost cumpărat iniţial Bunul; sau (ii) la orice altă parte decât cea de la care a fost cumpărat iniţial Bunul (de ex., în cazul în care Cumpărătorul a cumpărat Bunuri de la un terţ şi aduce o Reclamaţie direct la Vânzător), spre deosebire de cele menţionate în Articolul 3.4 din Regulile privind Gestionarea Bunurilor, aceasta va fi gestionat exclusiv prin repararea sau înlocuirea Bunurilor. Pentru evitarea oricăror dubii referitor la sensul acestui aranjament, se afirmă în mod clar că în cazurile conform primei fraze din prezentul Articol, Reclamaţia nu poate fi soluţionată prin aplicarea de reduceri şi că nu există posibilitatea retragerii din contractul de cumpărare în baza căruia au fost cumpărate Bunurile.
B41: 3.6 Cumpărătorul are dreptul să decidă asupra metodei de remediere a defecţiunii Bunurilor. Acest drept este limitat în cazul Reclamaţiilor conform Articolului 3.5 din prezentele Reguli privind Gestionarea Reclamaţiilor.
B43: IV. VALABILITATEA REGULILOR PRIVIND GESTIUNEA RECLAMAŢIILOR
B44: IV.1 Aceste Reguli privind Gestionarea Reclamaţiilor intră în vigoare la 1.10.2011.

Sheet Manual
B2: ______________________________________________________
B3: MANUAL
B4: ______________________________________________________
B7: 1. Selectaţi lista "Grupuri de reduceri" şi definiţi condiţiile de reducere. Le puteţi defini fie pentru grupurile de bază, fie pentru grupuri detaliate.
B8: 2. Trebuie să stabiliţi condiţiile de reducere înainte de a crea o comandă sau o ofertă. Nu sunt incluse schimbări consecutive în comanda sau oferta existentă.
B9: 3. Pentru a adăuga un item în Comandă, selectaţi orice celulă dintr-un rând cu un produs corespunzător şi apoi daţi click pe butonul "Add to order" ("Adaugă la comandă").
B10: 4. Pentru a adăuga un item într-o Ofertă, selectaţi orice celulă dintr-un rând cu un produs corespunzător şi apoi daţi click pe butonul "Add to offer ("Adaugă la ofertă").
B11: 5. După ce aţi dat click pe un buton conform punctului 3 sau 4, va apărea o fereastră. Scrieţi numărul de bucăţi dorite şi apăsaţi Enter.
B12: 6. Puteţi selecta mai multe produse, folosind butonul Shift sau Alt. Ferestrele cu numărul de bucăţi vor apărea pas cu pas.
B13: 7. Completaţi detaliile de contact într-un antet de pe lista "Comandă" sau "Ofertă".
B14: 8. Dacă doriţi să ştergeţi un rând dintr-o oferă sau o comandă, selectaţi orice celulă de pe rândul respectiv şi apăsaţi butonul "Delete row" ("Şterge rând").
B15: 9. Puteţi şterge întreaga listă cu produse dintr-o oferă sau o comandă dând click pe butonul "Delete all" ("Şterge tot").
B16: 10. Vă puteţi salva comanda sau oferta conform unei proceduri standard în Excel.
B17: 11. Puteţi exporta oferta sau comanda într-un fişier pdf dând click pe butonul "Save as PDF" ("Salvează ca PDF").
B18: 12. Pentru a imprima o oferă sau o comandă, vă rugăm să folosiţi intrumentele standard de imprimare din Excel.
